{"text_format":"1","workbook":"xlsx","n_sheets":6,"sheets":["Transportation Application","Vehicle List","Driver List","Data","Broker List","Sheet1"],"not_rendered":{"charts":0,"images":1,"macros":1,"external_links":1,"defined_names":13,"comments":0,"pivot_tables":0},"unopened":[],"bounds":{"document_bytes":16777216,"sheet_cells":100000,"rows_first":2000,"rows_last":500,"rows_between":2000,"halvings":0,"cell_chars":16384,"cell_head_chars":4096},"cells_cut":0,"cells_raw":0,"read":"whole","date_system":"1900"}

{"sheet":"Transportation Application","index":0,"n_rows":373,"n_cols":20,"rows_kept":373,"cut":false,"hidden":false,"merged":[[134,8,134,10],[128,14,128,16],[129,14,129,16],[134,14,134,16],[135,14,135,16],[136,14,136,16],[121,14,121,16],[122,14,122,16],[123,14,123,16],[124,14,124,16],[125,14,125,16],[126,14,126,16],[127,14,127,16],[129,8,129,10],[135,8,135,10],[136,8,136,10],[123,2,123,4],[124,2,124,4],[125,2,125,4],[77,6,77,8],[130,14,130,16],[131,14,131,16],[132,14,132,16],[133,14,133,16],[118,8,118,10],[119,8,119,10],[120,8,120,10],[131,8,131,10],[132,8,132,10],[133,8,133,10],[121,5,121,7],[123,5,123,7],[118,14,118,16],[116,11,116,13],[116,14,116,16],[120,11,120,13],[119,14,119,16],[120,14,120,16],[117,11,117,13],[118,11,118,13],[137,2,137,4],[117,5,117,7],[118,5,118,7],[119,5,119,7],[120,5,120,7],[137,5,137,7],[124,5,124,7],[125,5,125,7],[126,5,126,7],[127,5,127,7],[128,5,128,7],[129,5,129,7],[130,5,130,7],[131,5,131,7],[132,5,132,7],[133,5,133,7],[134,5,134,7],[132,2,132,4],[133,2,133,4],[135,2,135,4],[136,2,136,4],[122,5,122,7],[135,5,135,7],[136,5,136,7],[134,2,134,4],[122,2,122,4],[110,8,110,10],[118,2,118,4],[119,2,119,4],[120,2,120,4],[126,2,126,4],[127,2,127,4],[128,2,128,4],[129,2,129,4],[130,2,130,4],[131,2,131,4],[121,2,121,4],[121,8,121,10],[122,8,122,10],[123,8,123,10],[124,8,124,10],[125,8,125,10],[114,2,114,4],[114,5,114,7],[113,5,113,7],[116,2,116,4],[116,5,116,7],[116,8,116,10],[119,11,119,13],[97,11,97,13],[99,11,99,13],[100,11,100,13],[97,5,97,7],[104,8,104,10],[105,8,105,10],[106,8,106,10],[95,14,95,16],[96,14,96,16],[97,14,97,16],[98,14,98,16],[99,14,99,16],[100,14,100,16],[104,14,104,16],[105,14,105,16],[106,14,106,16],[99,5,99,7],[100,5,100,7],[104,5,104,7],[105,5,105,7],[233,0,233,6],[234,0,234,6],[108,0,108,1],[109,0,109,1],[110,0,110,1],[111,0,111,1],[74,6,74,8],[75,6,75,8],[76,6,76,8],[91,5,91,6],[93,2,93,4],[94,2,94,4],[95,2,95,4],[91,0,91,4],[96,2,96,4],[97,2,97,4],[98,2,98,4],[99,2,99,4],[79,8,79,11],[79,2,79,3],[80,2,80,3],[81,2,81,3],[96,5,96,7],[100,2,100,4],[267,0,267,6],[271,0,271,2],[272,0,272,2],[273,0,273,2],[274,0,274,2],[275,0,275,2],[255,8,255,17],[252,0,252,5],[355,14,355,15],[294,14,294,15],[296,14,296,15],[288,2,288,19],[276,15,276,19],[276,5,276,9],[355,0,355,1],[295,14,295,15],[283,15,283,19],[284,15,284,19],[285,15,285,19],[285,0,285,2],[277,5,277,9],[278,5,278,9],[271,5,271,9],[272,5,272,9],[357,0,357,1],[359,0,359,1],[357,8,357,11],[355,8,355,11],[276,0,276,2],[277,0,277,2],[278,0,278,2],[279,0,279,2],[280,0,280,2],[281,0,281,2],[290,0,290,17],[291,0,291,1],[291,3,291,6],[291,9,291,11],[277,15,277,19],[278,15,278,19],[279,15,279,19],[280,15,280,19],[281,15,281,19],[282,15,282,19],[282,5,282,9],[283,5,283,9],[283,0,283,2],[284,0,284,2],[357,14,357,15],[271,15,271,19],[272,15,272,19],[273,15,273,19],[274,15,274,19],[275,15,275,19],[235,0,235,6],[341,0,341,2],[352,0,352,15],[353,0,353,17],[293,0,293,6],[293,8,293,17],[303,0,303,2],[305,0,305,6],[319,0,319,1],[284,5,284,9],[285,5,285,9],[279,5,279,9],[280,5,280,9],[281,5,281,9],[282,0,282,2],[294,8,294,11],[295,8,295,11],[296,8,296,11],[273,5,273,9],[274,5,274,9],[275,5,275,9],[94,0,94,1],[95,0,95,1],[96,0,96,1],[97,0,97,1],[98,0,98,1],[99,0,99,1],[170,3,170,6],[170,9,170,11],[169,9,169,11],[168,9,168,11],[165,9,165,11],[102,2,102,4],[103,2,103,4],[111,2,111,4],[112,2,112,4],[113,2,113,4],[98,5,98,7],[222,0,222,6],[224,0,224,6],[225,0,225,6],[228,0,228,8],[167,3,167,6],[167,9,167,11],[166,9,166,11],[166,14,166,15],[167,14,167,15],[231,0,231,6],[232,0,232,6],[142,14,142,15],[143,14,143,15],[144,14,144,15],[145,14,145,15],[146,14,146,15],[147,14,147,15],[142,3,142,4],[230,0,230,6],[218,0,218,8],[149,14,149,15],[195,8,195,9],[195,0,195,1],[195,2,195,3],[195,5,195,6],[194,0,194,9],[100,0,100,1],[101,0,101,1],[165,14,165,15],[107,2,107,4],[108,2,108,4],[109,2,109,4],[110,2,110,4],[108,8,108,10],[108,14,108,16],[109,14,109,16],[110,14,110,16],[104,11,104,13],[111,14,111,16],[113,14,113,16],[114,14,114,16],[117,2,117,4],[117,8,117,10],[117,14,117,16],[111,8,111,10],[113,8,113,10],[114,8,114,10],[105,11,105,13],[106,11,106,13],[108,11,108,13],[254,8,254,14],[102,0,102,1],[103,0,103,1],[104,0,104,1],[105,0,105,1],[112,0,112,1],[113,0,113,1],[114,0,114,1],[106,0,106,1],[107,0,107,1],[168,14,168,15],[169,14,169,15],[170,14,170,15],[172,6,172,9],[173,6,173,9],[202,6,202,8],[168,3,168,6],[169,3,169,6],[165,0,165,1],[165,3,165,6],[166,3,166,6],[104,2,104,4],[105,2,105,4],[106,2,106,4],[137,14,137,16],[120,17,120,19],[126,17,126,19],[127,17,127,19],[125,17,125,19],[124,17,124,19],[250,8,250,14],[251,8,251,14],[253,8,253,14],[249,8,249,14],[248,8,248,14],[137,8,137,10],[130,8,130,10],[134,11,134,13],[135,11,135,13],[136,11,136,13],[121,11,121,13],[122,11,122,13],[123,11,123,13],[124,11,124,13],[125,11,125,13],[126,8,126,10],[127,8,127,10],[128,8,128,10],[137,11,137,13],[126,11,126,13],[127,11,127,13],[128,11,128,13],[129,11,129,13],[130,11,130,13],[131,11,131,13],[132,11,132,13],[133,11,133,13],[1,6,1,8],[4,6,4,11],[13,2,13,5],[19,2,19,5],[20,11,20,15],[93,0,93,1],[4,2,4,3],[5,2,5,3],[33,2,33,6],[73,2,73,3],[75,2,75,3],[76,2,76,3],[77,2,77,3],[78,2,78,3],[93,5,93,7],[93,11,93,13],[9,1,9,5],[8,1,8,5],[77,9,77,11],[85,2,85,3],[82,2,82,3],[36,9,36,13],[37,9,37,13],[74,2,74,3],[74,9,74,11],[75,9,75,11],[76,9,76,11],[71,2,71,3],[24,2,24,3],[26,2,26,3],[33,9,33,13],[32,9,32,13],[34,9,34,13],[35,9,35,13],[34,2,34,6],[114,17,114,19],[0,9,0,15],[1,9,1,15],[2,9,2,15],[3,9,3,15],[4,14,4,15],[8,6,8,8],[26,9,26,11],[59,9,59,11],[8,9,8,15],[9,9,9,15],[10,9,10,15],[5,9,5,15],[109,11,109,13],[110,11,110,13],[111,11,111,13],[113,11,113,13],[106,5,106,7],[108,5,108,7],[109,5,109,7],[110,5,110,7],[111,5,111,7],[73,9,73,11],[1,1,1,5],[95,17,95,19],[137,17,137,19],[136,17,136,19],[135,17,135,19],[134,17,134,19],[133,17,133,19],[132,17,132,19],[131,17,131,19],[130,17,130,19],[129,17,129,19],[113,17,113,19],[116,17,116,19],[104,17,104,19],[121,17,121,19],[122,17,122,19],[123,17,123,19],[128,17,128,19],[105,17,105,19],[108,17,108,19],[109,17,109,19],[111,17,111,19],[106,17,106,19],[110,17,110,19],[96,17,96,19],[17,2,17,5],[100,17,100,19],[21,11,21,15],[22,11,22,15],[17,9,17,15],[13,11,13,15],[95,8,95,10],[93,14,93,16],[94,14,94,16],[96,8,96,10],[97,8,97,10],[98,8,98,10],[99,8,99,10],[100,8,100,10],[94,11,94,13],[95,11,95,13],[96,11,96,13],[99,17,99,19],[98,17,98,19],[97,17,97,19],[94,17,94,19],[93,17,93,19],[73,6,73,8],[94,5,94,7],[75,0,75,1],[286,0,286,2],[286,5,286,9],[286,15,286,19],[236,0,236,6],[237,0,237,6],[238,0,238,6],[195,14,195,19],[320,3,320,6],[256,8,256,14],[247,8,247,17],[148,14,148,15],[95,5,95,7],[93,8,93,10],[94,8,94,10],[83,2,83,3],[84,2,84,3],[119,17,119,19],[118,17,118,19],[117,17,117,19],[114,11,114,13],[109,8,109,10],[101,2,101,4],[98,11,98,13]]}
["BROKER INFORMATION",null,null,null,null,null,null,null,"Date:"]
["Agency:                                                                         ",null,null,null,null,null,"Producer's Name:"]
["Agency Phone:",null,null,null,null,null,null,null,"E-Mail Address:"]
["Agency Fax:",null,null,null,null,null,null,null,"Producer Phone:"]
["Are you the incumbent agency?",null,null,null,null,null,"If Y, how long has your agency written this applicant?"]
["Is this a brokered account?",null,null,null,null,null,null,null,"Sub-Producer Name (if applicable):"]
[]
["APPLICANT INFORMATION"]
["Effective Date:",null,null,null,null,null," Requested Quote Date:"]
["Applicant's Name:",null,null,null,null,null,"Business Type:"]
["Insured DBA:",null,null,null,null,null,"Federal ID #:"]
["Year Established:",null,null,null,null,null,null,null,"Years in Business:"]
["1st Year Under Current Management:",null,null,null,null,null,null,null,"Years Under Current Management:"]
["Account Category (choose most applicable):",null,"Paratransit(9-20)",null,null,null,null,null,"New or Renewal?"]
[]
["Is this a new venture?"]
[]
["If new venture, have you ever driven for or been associated with any transportation operation before?",null,null,null,null,null,null,null,"If Y, please list name of company:"]
[]
["Mailing Address ",null,null,null,null,null,null,null,"Garaging Address (if different)"]
["Mailing City",null,null,null,null,null,null,null,"Garaging City"]
["Mailing State",null,null,null,null,null,null,null,"Garaging State"]
["Mailing Zip",null,null,null,null,null,null,null,"Garaging Zip"]
[]
["Are mailing and garaging addresses the same?"]
[]
["Primary City of Operations:",null,null,null,null,null,null,null,null,"Primary City Zip Code (any zip in city)"]
[]
["Additional Named Insured 1:",null,null,null,null,null,null,null,null,"Additional Insured 1 Address:"]
["Additional Named Insured 2:",null,null,null,null,null,null,null,null,"Additional Insured 2 Address:"]
[]
["Phone:",null,null,null,null,null,null,null,null,"Type of Garaging (Enter Y to all that apply):"]
["Fax:",null,null,null,null,null,null,null,null,"Type",null,null,null,null,"Y/N"]
["Company Website:",null,null,null,null,null,null,null,null,"Indoor"]
["Facebook:",null,null,null,null,null,null,null,null,"Outdoor"]
[null,null,null,null,null,null,null,null,null,"Fenced"]
[null,null,null,null,null,null,null,null,null,"Lighted"]
[null,null,null,null,null,null,null,null,null,"Security Guard"]
[]
[]
["Key Management Personnel:"]
["Applicant Contact:",null,null,null,null,null,"e-mail:",null,null,null,null,"Ph./Ext.:"]
["President/CEO/Owner/Fleet Manager:",null,null,null,null,null,"Yrs. in Position:",null,null,null,null,"Ph./Ext.:"]
["Operations Manager:",null,null,null,null,null,"Yrs. in Position:",null,null,null,null,"Ph./Ext.:"]
["Safety Director:",null,null,null,null,null,"Yrs. in Position:",null,null,null,null,"Ph./Ext.:"]
["Maintenance Director:",null,null,null,null,null,"Yrs. in Position:",null,null,null,null,"Ph./Ext.:"]
["Subsidiaries/Affiliated Companies"]
["Name:",null,null,null,null,null,null,null,"Relationship:"]
["Type of Business:",null,null,null,null,null,null,null,"Included in Insurance?"]
["# of Vehicles/Size of Company:"]
[]
[]
["FILING/GENERAL INFORMATION"]
["Does applicant require an A-rated carrier?"]
["Are there any filings required?",null,null,null,null,null,null,null,null,"MC Docket #:"]
["If so, please list all filings required:"]
[]
["Does applicant require intra-state filings?",null,null,null,null,null,null,null,null,null,null,"USDOT #:"]
["Does applicant allow others to operate under their authority?",null,null,null,null,null,null,null,null,null,null,"PUC #:"]
["Has the applicant previously allowed others to operate under their authority?",null,null,null,null,null,null,null,null,"Other state filing #"]
["If Y, please list states"]
["Please list states where applicant has operating authority:"]
["Please specify any Canadian Filings:"]
["List name and address exactly as listed on filing:"]
[]
["# of additional interests?"]
["Additional interest 1(Type/Name/Address):"]
["Additional interest 2(Type/Name/Address):"]
[]
["REQUESTED COVERAGES:"]
[]
["Coverages Desired:"]
[]
["AUTO LIABILITY COVERAGE",null,"Coverage Requested",null,null,null,"Physical Damage   Coverage                     ($1M Per Occurrence Limit)",null,null,"Deductible"]
["Single or Split Limit",null,null,null,null,null,"Specified Perils"]
["Bodily Injury (Up to $5M). List full limits desired**",null,null,null,null,null,"Comprehensive"]
["Property Damage. List full limits desired**",null,null,null,null,null,"Collision"]
["Liability Deductible",null,null,null,null,null,"Auto Liability Symbols Covered"]
["Uninsured Motorist "]
["Underinsured Motorist ",null,null,null,null,"Total Stated Values:"]
["Medical Payments Limit"]
["Personal Injury Protection (PIP)"]
["Add'l PIP limits desired (enter limit if not shown above):"]
["Waiver of Subrogation Required?"]
["Primary Non-Contributory Coverage?"]
["Auto Liability Symbols Covered"]
["* Mileage/Gross Receipts, SIR's, and captives also may be available dependent on risk characteristics."]
["**Depending on risk, may only be able to quote up $1M-1.5M"]
[]
[]
[]
["Historical Years Available?"]
[]
["Historical Insurance Coverage (Liability)",null,"Projected",null,null,"Current/Expiring",null,null,"1st Prior",null,null,"2nd Prior",null,null,"3rd Prior",null,null,"4th Prior"]
["Policy Term Start Date"]
["Policy Term End Date (Change if Incorrect)",null,{"$f":"IF(ISBLANK(C95),\"\",DATE(YEAR(C95)+1,MONTH(C95),DAY(C95))-1)","v":""},null,null,"2018-12-12",null,null,{"$f":"I95+365","v":"1900-12-30"},null,null,{"$f":"L95+365","v":"1900-12-30"},null,null,{"$f":"O95+365","v":"1900-12-30"},null,null,{"$f":"R95+365","v":"1900-12-30"}]
["Insurance Carrier / Broker"]
["Liability Limits"]
["Liability Deductible"]
["Collision Deductible"]
["Comprehensive Deductible"]
["Auto Liability Premium Per Vehicle"]
["Physical Damage Premium Per Vehicle"]
["Total Premium Per Vehicle"]
["Number of Vehicles"]
["Number of Drivers"]
["Incurred Losses without Deductible Recoveries - Liability"]
["Incurred Losses with Deductible Recoveries - Liability"]
["Number of Claims - Liability"]
["Total Number of Open Claims & Claims >=$400 - Liability"]
["Loss Run Date for Each Term"]
["Incurred Losses without Deductible Recoveries - Physical Damage"]
["Incurred Losses with Deductible Recoveries - Physical Damage"]
["Number of Claims - Physical Damage"]
["Total Number of Open Claims & Claims >=$400 - Physical Damage"]
[]
["Projections & Historical Figures",null,"Projected",null,null," Current/Expiring",null,null,"1st Prior",null,null,"2nd Prior",null,null,"3rd Prior",null,null,"4th Prior"]
["Gross Revenues"]
["Total Fleet Mileage"]
["# of One-Way Trips"]
[]
["Charter Bus (> 29 passengers)"]
["Charter Mini (16-29 passengers)"]
["Charter Van (< 16 passengers)"]
["School Bus (1-8 passengers)"]
["School Bus (9-20 passengers)"]
["School Bus (21-60 passengers)"]
["School Bus (60+ passengers)"]
["School Van"]
["Transit Bus (> 20 passengers)"]
["Small Transit (<= 20 passengers) "]
["Sedan / SUV (non-stretched)"]
["Stretch Limo"]
["Stretch SUV"]
["Super stretch SUV (>200\" stretch)"]
["Limo Bus"]
["Wheelchair Vans"]
["Total units:",null,{"$f":"SUM(C122:C137)","v":0},null,null,{"$f":"SUM(F122:F137)","v":0},null,null,{"$f":"SUM(I122:I137)","v":0},null,null,{"$f":"SUM(L122:L137)","v":0},null,null,{"$f":"SUM(O122:O137)","v":0},null,null,{"$f":"SUM(R122:R137)","v":0}]
[]
["OPERATIONS",null,null,null,null,null,null,null,{"$f":"IF(O142=100%,\" \",\"TOTAL PERCENTAGES  MUST EQUAL 100%!\")","v":"TOTAL PERCENTAGES  MUST EQUAL 100%!"}]
[]
["USE AS % OF TOTAL MILEAGE",null,null,null,null,null,null,null,null,null,null,"TOTAL:",null,null,{"$f":"SUM(O143:O148,I143:I150,D143:D150)","v":0}]
["Charter Bus",null,null,null,null,"Fixed Route Transit",null,null,null,"Airport Service"]
["Inter-city Scheduled Service",null,null,null,null,"Demand Response",null,null,null,"Special Occasion Limo"]
["Other Scheduled Service",null,null,null,null,"Paratransit",null,null,null,"Corporate Sedan"]
["Local Sightseeing or Courtesy Bus",null,null,null,null,"Non-emergency. Medical",null,null,null,"Black/Silver Car"]
["Before and After School Routes",null,null,null,null,"Employee Shuttle",null,null,null,"Metered Taxi"]
["School Activity Transportation",null,null,null,null,"Employment Service",null,null,null,"Non-metered Taxi"]
["Non-School Charter (School type bus only)",null,null,null,null,"Van Pool",null,null,null,"Professional Athletes"]
["Head Start / Day Care Transportation",null,null,null,null,"Social Service",null,null,null,"Entertainment Groups"]
[]
["List airports served and % of trips to each:",null,null,null,null,null,null,null,null,null,null,null,null,null,"What percentage of your trips are:"]
["Provide a brief description of your operation:",null,null,null,null,null,null,null,null,null,null,null,null,null,"Type","%"]
[null,null,null,null,null,null,null,null,null,null,null,null,null,null,"Airport"]
["How many vehicles have meters/fareboxes?",null,null,null,null,null,null,null,null,null,null,null,null,null,"Corporate"]
[null,null,null,null,null,null,null,null,null,null,null,null,null,null,"Weddings"]
["Buses & Limos Section:",null,null,null,null,null,null,null,null,null,null,null,null,null,"Night Out"]
[null,null,null,null,null,null,null,null,null,null,null,null,null,null,"School"]
["Do you travel into Mexico?",null,null,null,null,null,null,null,null,null,null,null,null,null,"Disabled/Handicapped"]
["Do you service casinos?",null,null,null,null,"If Yes, what % of trips?",null,null,null,null,null,null,null,null,"Non-Emergency Medical"]
["Do you enter into Subcontracting/Interchange Agreements?",null,null,null,null,null,null,null,null,null,null,null,null,null,"Other"]
[null,null,null,null,null,null,null,null,null,null,null,null,null,null,"Total (must add to 100%)",{"$f":"SUM(P154:P161)","v":0}]
[]
["DESTINATIONS (Must equal 100%)",null,null,null,null,null,null,null,null,null,null,"TOTAL:",null,null,{"$f":"SUM(C168:C171,I167:I171,O167:O171)","v":0}]
["Charter: List all destinations as a % of total trips;  Taxi/Limo/Transit: List areas served and percent of trips;  School: List school districts served. "]
["City, State",null,"%","City, State",null,null,null,null,"%","City, State",null,null,null,null,"%"]
[]
[]
[]
[]
[]
[]
["What was the farthest destination traveled to in the past 12 months:"]
["List any destination in Mexico planned for the upcoming 12 months: "]
[]
[]
[]
["RISK SPECIFICS"]
["Hours of Service:",null,null,"Days of Service:",null,null,null,null,null,null,null,"How many shifts per day?"]
[]
["Radius of Operation:  ","0-50 Miles:",null,null,null,"51-200 Miles:",null,null,null,"200+ Miles:"]
[]
["Do drivers carry cell phones?"]
[]
["Are cell phones hands free?"]
[]
["App used for hailing?"]
[]
["App used for navigation?"]
[]
["Do any vehicles have lights and sirens?"]
[]
["Is there any ridesharing?",null,null,null,null,"If Yes, what % of trips?"]
[]
["Please indicate the extent to which you transport the following as a percentage of total mileage (skip if not applicable):"]
["Service Type",null,"Service Provided",null,null,"Service Arrangements",null,null,"Type of Transport",null,null,null,null,null,"Revenue Sources"]
["Non-Emergency",null,"Curb to Curb",null,null,"Pre-Scheduled",null,null,"Wheelchair",null,null,null,null,null,"Medicaid",null,null,"Social Service Agency"]
["ADA Paratransit",null,"Door to Door",null,null,"On-Demand",null,null,"Stretcher",null,null,null,null,null,"Workers Comp/HMOs",null,null,"School District"]
["Emergency",null,"Door Through Door",null,null,"Fixed Route",null,null,"Ambulatory",null,null,null,null,null,"Private Insurance",null,null,"Private Insurance"]
["Special Needs",null,"Hand to Hand",null,null,"Deviated Route",null,null,null,null,null,null,null,null,"Hospitals",null,null,"Transit Authority"]
["Other",null,null,null,null,null,null,null,null,null,null,null,null,null,"Private Individuals",null,null,"Corporate/Business"]
["Total",{"$f":"SUM(B197:B201)","v":0},"Total",{"$f":"SUM(D197:D201)","v":0},null,"Total",{"$f":"SUM(G197:G201)","v":0},null,"Total",{"$f":"SUM(J197:J201)","v":0},null,null,null,null,"Total",null,null,null,null,{"$f":"SUM(P197:P201,T197:T201)","v":0}]
[]
["Are any volunteers used in your business?",null,null,null,null,null,null,null,null,"If Y, what % of staff?"]
["What percentage of the fleet are wheelchair equipped?"]
["Do you hire from others for your use?",null,null,null,null,null,null,null,null,"If Y, Annual Cost of Hire:"]
["Do you hire from others with a driver?",null,null,null,null,null,null,null,null,"If Y, Annual Cost of Hire:"]
["Do you lease to others for their use?",null,null,null,null,null,null,null,null,"If Y, Annual Income Derived:"]
["Do you lease to others without a driver?",null,null,null,null,null,null,null,null,"If Y, Annual Income Derived:"]
["Is there assumed liability by contract/agreement?"]
["Do drivers take vehicles home?"]
["Are the vehicles solely owned by the applicant?"]
["Will you be adding or deleting vehicles during the policy term?",null,null,null,null,null,null,null,null,"If Y, Please Describe:"]
["NEMT/Paratransit/Ambulance Only Section"]
[]
["Does the insured subcontract for others?",null,null,null,null,null,null,null,"If yes, provide copies of contracts."]
["Does the company enter into any written or verbal agreements to provide service?"]
[]
["Certification Section (Enter Y to all that apply, skip if not applicable)"]
[]
["All drivers are both knowledgeable and certified in operating an NEMT"]
["All drivers have received training and are certified in the loading and unloading of wheelchairs"]
["Knowledgeable and certified in the proper securing wheelchair lockdown on 4 point lockdowns including not loading a passenger unless all four points are properly working."]
["Trained in the use of and proper procedures of wheelchair ramps or lifts (if applicable)"]
["Confirm with passengers understanding that the seatbelt must always be fastened and physical impairments and pre-existing injuries must be taken into account when assisting passengers"]
["Complete familiarity with the required procedures in the event of an emergency with a passenger and/or accident regardless of degree of seriousness to either notify Dispatch or call 911"]
[]
[]
["Additional Info (Enter Y to all that apply, skip if not applicable)"]
["Are all vehicles equipped with forward facing, 4-point tie downs?"]
["Are passengers in tri-wheelers required to transfer to a wheelchair or a permanent seat after loading?"]
["Are wheelchair or stretcher passengers ever permitted to ride in the vehicle in other than the designated securement locations?"]
["Does an attendant accompany stretcher clients? "]
["Will insured be transporting patients to the hospital/clinic/medical appointments?"]
["Will insured be transporting elderly passengers to the senior center?"]
["Will insured be transporting children under the age of 21?"]
["Does your company employ any EMTs?"]
["Do you provide any medical care to passengers during transport?"]
["Do you transport passengers with a portable oxygen system?"]
["If you provide stretcher service, do you use knee, hip, chest, and over the shoulder safety restraints?"]
[]
["DRIVER INFORMATION  (Please attach Driver Schedule with Dates of Birth, and Dates of Hire)"]
["Total # of Drivers:",null,null,"# over 70 y.o.:",null,null,"# under 25 y.o.:"]
["In the past year, how many drivers were:",null,null,"Hired:",null,null,"Terminated:"]
["How often are current MVRs pulled?"]
[]
["Are Drivers considered independent contractors?"]
[null,null,null,null,null,null,null,null,"Answer Y or No to the following questions:"]
[null,null,"Driving","On Duty",null,null,null,null,"Do you agree to report all drivers to Rivington?"]
["Drivers Maximum Hours Per Day Driving:",null,null,null,null,null,null,null,"Are any family members under 21 primary drivers of a company auto?"]
["Drivers Maximum Hours Per Week:",null,null,null,null,null,null,null,"Are all drivers properly licensed and DOT Compliant?"]
[null,null,null,null,null,null,null,null,"Have all drivers been driving a similar vehicle commercially for 2+ years?"]
["Driver Hiring Criteria",null,null,null,null,null,null,null,"Do all drivers have at least 5 years U.S. driving experience?"]
[null,null,null,null,null,null,null,null,"Is disciplinary plan documented for all drivers?"]
["Written Application:",null,"Min Age (#):",null,null,null,null,null,"Is there a driver incentive program?"]
["Road Test:",null,"Max Age (#):",null,null,null,null,null,"If you are a school bus company, answer the following:  "]
["Written Test:",null,null,null,null,null,null,null,"Are guest passengers (family members, friends of driver, etc.) authorized passengers on your buses?"]
["Full Medical:",null,null,null,null,null,null,null,"Do you allow coaches or teachers to drive your vehicles?"]
["Drug Testing:"]
["Current MVR:",null,null,null,null,null,null,null,"If Y, what is the reason?"]
["Reference Checks:"]
["Criminal Background Check:"]
[]
[]
[]
["MAINTENANCE/SAFETY/DISCOUNTS"]
[]
["Do you have the following:"]
[" Written maintenance program?",null,null,"Written safety program"]
["Written driver-training program?",null,null,"Written accident reporting procedures"]
[]
["Safety Device Category",null,null,"Currently In Place?",null,"Unit Description (i.e. Manufacturer/Device Name)",null,null,null,null,null,"If Yes, # of years in place?",null,null,"% of Fleet","If no, will you be installing during the upcoming policy period?"]
["Cameras"]
["Accident Event Recorders (AER's)"]
["Location Tracking Device"]
["Geographic Driving History Data"]
["Mileage Tracking Device"]
["Brake Warning System"]
["Distracted Driving Warning System"]
["Speed Warning System"]
["Monitoring of Harsh Braking/Speeding/Accelerating via Telematics Device"]
["Any Active Accident Avoidance Technology"]
["Any Passive Accident Avoidance Technology"]
["Reflective Tape"]
["Step Stools"]
["1-800-HOWSMYDRIVING Program"]
["No Texting/Cell Phone/Handheld Device Usage While Driving"]
[]
["Company's SAFER rating:"]
[]
["Your vehicle maintenance program includes:"]
["A service record for each vehicle?",null,null,"Controlled and frequent inspections?",null,null,null,null,null,"Vehicle daily condition reports?"]
[]
["Enter Y or N to the following questions:",null,null,null,null,null,null,null,"Other Maintenance Questions:"]
["Is your maintenance program managed by your company?*",null,null,null,null,null,null,null,"How many certified mechanics do you employ?"]
["Do you provide complete maintenance on all vehicles?*",null,null,null,null,null,null,null,"How often do you hold safety meetings?"]
["Are Driver Files available for review?*",null,null,null,null,null,null,null,"Who is in charge of claims?"]
["Are Accident Files available for review?*"]
["Will all claims be reported directly to NARS?*"]
["Does road supervision include Recording Devices?"]
["Does road supervision include Radio Dispatch?"]
[]
[]
["* Please explain \"No\" answers above:"]
[]
["Driver Training Section (Enter Y to all that apply)"]
["Company rules and policies"]
["Vehicle Inspection Procedures"]
["Equipment Familiarization"]
["Route familiarization"]
["Emergency procedures"]
["Accident reporting procedures"]
["Observation Period"]
["Certification Process"]
["Wheelchair Loading"]
["Wheelchair Securing"]
["Is re-training held?"]
[]
["Describe company safety programs:"]
["Describe any safety award/incentive programs:"]
["Describe how and when drivers are evaluated:"]
["Describe Driver Disciplinary plan:"]
["How is FMCSR compliance monitored:"]
[]
[]
[]
[]
[]
[]
[]
[]
[]
[]
[]
["MANDATORY UNDERWRITING QUESTIONS"]
[]
["During the past 4 years, has your insurance ever been obtained through an Assigned Risk Plan?"]
["If Y, Please Explain:"]
["Has any company provided notice of cancellation/non-renewal or otherwise canceled/refused to renew your insurance, including during the current term? "]
["If Y, Please Explain:"]
["Do you provide Worker's Compensation for all employees?"]
["If Y, provide Worker's Comp.carrier:"]
["If No, Provide Explanation:"]
["Have you ever filed for or contemplated filing for bankruptcy or had bankruptcy proceedings initiated against you by another party?"]
["If Y, Please Explain:"]
["Has your operating authority ever been suspended or revoked or have you received notice of intent to suspend?"]
["If Y, Please Explain:"]
["Is all equipment operated under the applicant's authority scheduled on the applicant's driver and vehicle schedule?"]
["If No, Please Explain:"]
[]
["Applicant and Producer:  Please sign and date the Applicant's Statement Below."]
[]
["APPLICANT'S STATEMENT"]
["I hereby declare that the statements made in this application and the contents of the other documents supplied are true and correct and agree that any policy of insurance that may be issued now or in the future will be based on warranties and representations contained therein.  "]
["APPLICANT ",null,null,null,null,null,null,null,"PRODUCER"]
[]
["Signature of Officer/Manager of Named Insured                              ",null,null,null,null,"Date",null,null,"Signature                                                                                                                     ",null,null,null,null,null,null,"Date"]
[]
["Print Full Name                                                                                ",null,null,null,null,"Title",null,null,"Print Full Name                                                                                                                          ",null,null,null,null,null,null,"Agency"]
[]
[]
[]
["IN ADDITION TO THIS APPLICATION, PLEASE SUBMIT THE FOLLOWING:"]
[]
["               * Currently valued (within 60 days), company issued loss runs for the current policy year and 4 prior years."]
["               * Current driver's list and motor vehicle records for ALL drivers.  Include dates of birth, dates of hire, years experience, social security numbers and license numbers."]
["               * Current DOT medical for all drivers age 70 or older and any driver with less than 2 year medical clearance."]
["               * Current Vehicle list, including year, make, complete VIN, stretch length (limo), seating capacity, vehicle type, stated amount and deductible requested."]
["               * Fuel tax reports (IFTA's) for the last eight quarters for all charter operations."]
["               * Current financials: Income statement and balance sheet "]
["               * Copy of cancellation or non-renewal notice issued in the current or 4 prior years."]
["               * Applicable written agreements for all hired, leased or assumed liability arrangements."]
["               * Provide explanation as to independent contractor status of drivers, if applicable."]

{"sheet":"Vehicle List","index":1,"n_rows":1,"n_cols":23,"rows_kept":1,"cut":false,"hidden":false,"merged":[]}
["Veh #","Company vehicle #","Insured ID","Plate #","Year","Make","Model","VIN","Cost new","Stated Amount","PD Deductible","Actual Cash Value","Seating capacity","Vehicle Type","Radius","Days driven per week","Date purchased","Leased","Stretch Length (limo)","Wheelchair Lift","Stretchers","Lights and Sirens","List Safety Devices"]

{"sheet":"Driver List","index":2,"n_rows":1,"n_cols":19,"rows_kept":1,"cut":false,"hidden":false,"merged":[]}
["Driver Name","Date of Birth","Sex","Marital Status","Drivers License Number","DriverLicenseExpireDate","Year Hire Date","Years Experience","Years Licensed","Social Security Number","MVR Provided","# of Minor Violations - Last 5 Years","# of Major Violations (include Speed 25+) - Last 5 Years","# of Speeding (below 25) - Last 5 Years","# of DUI - Last 5 Years","# of Not At Fault - Last 5 Years","# of \"Other\" Violations - Last 5 Years","# of Delaying/Obstructing - Last 5 Years","# of At-Fault Accidents - Last 5 Years"]

{"sheet":"Data","index":3,"n_rows":290,"n_cols":40,"rows_kept":290,"cut":false,"hidden":true,"merged":[[0,2,1,2],[0,3,1,3]]}
["Small and Large Fleet Dropdowns","Topic","Small Fleet Checkboxes","Large Fleet Checkboxes","Large Fleet Only Dropdowns",null,null,null,null,"Deductible",1,null,null,null,null,"Y","Sub Category",null,"Corporation","New Venture - No Driving Experience",null,null,null,null,"MedPay","BI Limits","PD Limits","UM Limits","Liab Deductible","Coll Deductible",null,null,null,null,null,null,null,"Liability Only","PIP Limits","Decline Coverage"]
[null,null,null,null,null,null,null,null,null,null,1,null,null,null,null,"N","Airport Bus Or Airport Limousine(1-8)",null,"Partnership","New Venture - Owned Another Company","Subsidiary","New","Weekdays Only","Single","Decline Coverage","15000/30000",5000,"Decline Coverage",0,0,null,0,"Hourly","Union","Quarterly","Weekly",1,"Physical Damage Only",null,"DE-Single PIP Limit $30000 Each \"Accident\"-Split Limit $15000 Per person/$30000 Per Accident"]
["Business Type",null,2,2,"Excess Physical Damage",null,null,null,null,"$1,000",2,null,null,null,null,"n/a","Airport Bus Or Airport Limousine(21-60)",null,"Individual","New Venture - Owner Currently Owns Another Company","Affiliate","Renewal","Weekends Only","Split",0,"25000/50000",10000,"15000/30000",500,50,"1) Any Auto","1-10%","By Mileage","Non-Union","Semi-Annually","Bi-Weekly",2,"Liability + Physical Damage",null,"FL-$10,000 PIP Limit"]
[" ",null,1,1,null,"Value?",1,null,null,"$2,500",3,null,null,null,null,null,"Airport Bus Or Airport Limousine(9-20)",null,"Gov. Entity","New Venture - Owner Was Driver For Another Company",null,null,"Weekdays and Weekends",null,500,30000,15000,"25000/50000",750,100,"2) All Owned Autos","11-20%","Trip",null,"Annually","Monthly",3,null,null,"KS-Medical Expenses Up to $4500, Rehabilitation Expenses Up to $4500, WL $900 per month Max up to one year, Essential Service Expenses Up to $25 per day up to 365 days, Funeral Expenses up to $2000 per person, Survivor's Loss $900 per month Max up to 365 days."]
["Corporation",null,2,2,null,"Interested?",1,null,null,"$5,000",4,null,null,null,null,null,"Airport Bus Or Airport Limousine(Over 60)",null,"Joint Venture",null,null,null,null,null,1000,"30000/60000",25000,30000,1000,250,"3) Owned Private Passenger Autos","21-30%","Other",null,"Bi-Annually","Quarterly",null,null,null,"MD-$2500 PIP Limit"]
["Partnership",null,3,3,null,"Lighted?",1,null,null,"$10,000",5,null,null,null,null,null,"Ambulance",null,"LLC",null,null,null,null,null,2000,35000,35000,"30000/60000",1200,"Decline Coverage","4) Owned Autos Other Than Private Passenger","31-40%",null,null,"Not Pulled","Semi-Annually",null,null,null,"MN-Basic Limit do not know"]
["Proprietorship",null,4,4,null,"Fuel Tanks?",1,null,null,"$25,000",6,null,null,null,null,null,"Car Service",null,"Other",null,null,null,null,null,5000,50000,50000,35000,1500,500,"5) All Owned Autos Which Require No-Fault Coverage","41-50%",null,null,null,"Annually",null,null,null,"ND-Basic Limit do not know"]
["Gov. Entity",null,5,5,null,"Outside?",1,null,null,"$50,000",7,null,null,null,null,null,"Charter Bus(1-8)",null,null,null,null,null,null,null,10000,"50000/100000",75000,50000,1750,1000,"6) Owned Autos Subject to Compulsory UM Law","51-60%",null,null,null,"Does Not Occur",null,null,null,"NJ-$250000 Pedestrian PIP Limit"]
[" ",null,null,null,null,"Inside?",1,null,null,"$100,000",8,null,null,null,null,null,"Charter Bus(21-60)",null,null,null,null,null,null,null,null,"50000/150000",85000,"50000/100000",2000,2000,"7) Autos Specified on  Schedule","61-70%",null,null,null,null,null,null,null,"NY-$50,000 PIP Limit"]
[null,null,null,null,null,"Flood?",1,null,null,"$250,000",9,null,null,null,null,null,"Charter Bus(9-20)",null,null,null,null,null,null,null,null,75000,100000,"50000/150000",2250,2500,"8) Hired Autos","71-80%",null,null,null,null,null,null,null,"OR-Medical Expenses $15000 Less Deductible,if any -Income Continuation Expenses $3000 Per month Loss of Service Expenses $30 Per day, Funeraal Expenses $5000, Child Care Expenses $25 Per day, up to $"]
["States",null,6,1,null,"Guard?",1,null,null,null,null,null,null,null,null,null,"Charter Bus(Over 60)",null,null,null,null,null,null,null,null,85000,125000,75000,2500,3000,"9) Non-Owned Autos","81-90%",null,null,null,null,null,null,null,"PA-Medical Expense Benefits Up to $5000 per insured"]
[" ",null,12,1," ",null,1,null,null,null,"Service Performed",null,1,null,null,null,"Church Bus(1-8)",null,null,null,null,null,null,null,null,100000,150000,85000,3000,5000,"2,8,9","91-100%",null,null,null,null,null,null,null,"PA-Additional Monthly WL$1000/15000-Medical Expenses $25000-Funeral $1500-Accidental Death Benefits $10000"]
[" ",null,1,1,"Yes",null,2,null,null,null," ",null,1,null,null,null,"Church Bus(21-60)",null,null,null,null,null,null,null,null,"100000/300000",250000,100000,3500,null,"7,8,9",null,null,null,null,null,null,null,null,"PA-Additional Monthly WL$1000/15000-Medical Expenses $25000-Funeral $1500-Accidental Death Benefits $25000"]
[" ",null,1,1,"No",null,3,null,null,null,"Yes",null,2,null,null,null,"Church Bus(9-20)",null,null,null,null,null,null,null,null,125000,300000,"100000/300000",5000,null,null,null,null,null,null,null,null,null,null,"PA-Additional Monthly WL$1000/15000-Medical Expenses $25000-Funeral $1500-Accidental Death Benefits $5000"]
["AL",null,2,2," ",null,null,null,null,null,"No",null,3,null,null,null,"Church Bus(Over 60)",null,null,null,null,null,null,null,null,"125000/300000",350000,125000,10000,null,null,null,null,null,null,null,null,null,null,"PA-Additional Monthly WL$1000/15000-Medical Expenses $25000-Funeral $2500-Accidental Death Benefits $10000"]
["AK",null,3,3,null,null,3,null,null,null," ",null,null,null,null,null,"Van Pool(1-8)",null,null,null,null,null,null,null,null,150000,500000,"125000/300000",25000,null,null,null,null,null,null,null,null,null,null,"PA-Additional Monthly WL$1000/15000-Medical Expenses $25000-Funeral $2500-Accidental Death Benefits $25000"]
["AZ",null,4,4,null,null,null,null,null,null,null,null,null,null,null,null,"Van Pool(21-60)",null,null,null,null,null,null,null,null,250000,650000,150000,50000,null,null,null,null,null,null,null,null,null,null,"PA-Additional Monthly WL$1000/15000-Medical Expenses $25000-Funeral $2500-Accidental Death Benefits $5000"]
["AR",null,5,5,null,null,null,null,null,null,null,null,null,null,null,null,"Van Pool(9-20)",null,null,null,null,null,null,null,null,"250000/500000",750000,250000,60000,null,null,null,null,null,null,null,null,null,null,"TX-$2500 PIP Limit"]
["CA",null,6,6,"Garage Coverages",null,1,null,null,null,null,null,null,null,null,null,"Van Pool(Over 60)",null,null,null,null,null,null,null,null,300000,1000000,"250000/500000",null,null,null,null,null,null,null,null,null,null,null,"DE-Additional PIP Limits $20000"]
["CO",null,7,7," ",null,1,null,null,null,null,null,null,null,null,null,"Inter-city Bus(1-8)",null,null,null,null,null,null,null,null,350000,1500000,300000,null,null,null,null,null,null,null,null,null,null,null,"DE-Additional PIP Limits $270000"]
["CT",null,8,8,1000000,null,2,null,null,null,null,null,null,null,null,null,"Inter-city Bus(21-60)",null,null,null,null,null,null,null,null,500000,2000000,350000,null,null,null,null,null,null,null,null,null,null,null,"DE-Additional PIP Limits $70000"]
["DE",null,9,9,"Other",null,3,null,null,null,null,null,null,null,null,null,"Inter-city Bus(9-20)",null,null,null,null,null,null,null,null,650000,3000000,500000,null,null,null,null,null,null,null,null,null,null,null,"FL-Additonal Limits(excluding WL) $10000"]
["FL",null,10,10,null,null,null,null,null,null,null,null,null,null,null,null,"Inter-city Bus(Over 60)",null,null,null,null,null,null,null,null,750000,5000000,650000,null,null,null,null,null,null,null,null,null,null,null,"FL-Additonal Limits(excluding WL) $25000"]
["GA",null,11,11," ",null,null,null,null,null,null,null,null,null,null,null,"Limousine - Seating 8 or Fewer",null,null,null,null,null,null,null,null,1000000,null,750000,null,null,null,null,null,null,null,null,null,null,null,"FL-Additonal Limits(excluding WL) $40000"]
["HI",null,12,12,null,null,null,null,null,null,null,null,null,null,null,null,"Limousine - Seating More Than 8",null,null,null,null,null,null,null,null,1500000,null,1000000,null,null,null,null,null,null,null,null,null,null,null,"FL-Additonal Limits(excluding WL) $90000"]
["ID",null,13,13,"Garagekeepers Legal Liability",null,1,null,"Deductible",null,null,null,null,null,null,null,"New York City Luxury Limousine - Seating 8 or Fewer",null,null,null,null,null,null,null,null,2000000,null,1500000,null,null,null,null,null,null,null,null,null,null,null,"FL-Additonal Limits(including WL) $10000"]
["IL",null,14,14," ",null,1,null,null,null,null,1,null,null,null,null,"New York City Luxury Limousine - Seating More Than 8",null,null,null,null,null,null,null,null,3000000,null,2000000,null,null,null,null,null,null,null,null,null,null,null,"FL-Additonal Limits(including WL) $25000"]
["IN",null,15,15,60000,null,2,null,null,null,null,1,null,null,null,null,"New York City Medallion Taxicab - All Other",null,null,null,null,null,null,null,null,4000000,null,3000000,null,null,null,null,null,null,null,null,null,null,null,"FL-Additonal Limits(including WL) $40000"]
["IA",null,16,16,75000,null,3,null,null,"Specified Perils/Comp. :",null,1,null,null,null,null,"New York City Medallion Taxicab – Owner-driver",null,null,null,null,null,null,null,null,5000000,null,4000000,null,null,null,null,null,null,null,null,null,null,null,"FL-Additonal Limits(including WL) $90000"]
["KS",null,17,17,90000,null,4,null," ","Collision:",null,1,null,null,null,null,"Other School Bus(1 -8)",null,null,null,null,null,null,null,null,null,null,5000000,null,null,null,null,null,null,null,null,null,null,null,"MN-Medical Expenses $100000-Aggregate WL, ES, FE and SL $50000-Weekly Maximum WL Or SL For Loss of Contributions $800-Weekly Maximum ES Or SL For Subsittute Services $300"]
["KY",null,18,18,120000,null,5,null,"$250","Per Occurrence",null,2,null,null,null,null,"Other School Bus(21 -60)",null,null,null,null,null,null,null,null,null,null,null,null,null,null,null,null,null,null,null,null,null,null,"MN-Medical Expenses $30000-Aggregate WL, ES, FE and SL $20000-Weekly Maximum WL Or SL For Loss of Contributions $500-Weekly Maximum ES Or SL For Subsittute Services $200"]
["LA",null,19,19,150000,null,6,null,"$500",null,null,3,null,null,null,null,"Other School Bus(9 -20)",null,null,null,null,null,null,null,null,null,null,null,null,null,null,null,null,null,null,null,null,null,null,"MN-Medical Expenses $40000-Aggregate WL, ES, FE and SL $20000-Weekly Maximum WL Or SL For Loss of Contributions $500-Weekly Maximum ES Or SL For Subsittute Services $200"]
["ME",null,20,20,180000,null,7,null,"$1,000",null,null,4,null,null,null,null,"Other School Bus(Over 60)",null,null,null,null,null,null,null,null,null,null,null,null,null,null,null,null,null,null,null,null,null,null,"MN-Medical Expenses $50000-Aggregate WL, ES, FE and SL $20000-Weekly Maximum WL Or SL For Loss of Contributions $500-Weekly Maximum ES Or SL For Subsittute Services $200"]
["MD",null,21,21,225000,null,8,null,"$2,500",null,null,5,null,null,null,null,"Paratransit(1-8)",null,null,null,null,null,null,null,null,null,null,null,null,null,null,null,null,null,null,null,null,null,null,"MN-Medical Expenses $50000-Aggregate WL, ES, FE and SL $25000-Weekly Maximum WL Or SL For Loss of Contributions $600-Weekly Maximum ES Or SL For Subsittute Services $300"]
["MA",null,22,22,300000,null,9,null,"$5,000",null,null,6,null,null,null,null,"Paratransit(21-60)",null,null,null,null,null,null,null,null,null,null,null,null,null,null,null,null,null,null,null,null,null,null,"MN-Medical Expenses $75000-Aggregate WL, ES, FE and SL $25000-Weekly Maximum WL Or SL For Loss of Contributions $600-Weekly Maximum ES Or SL For Subsittute Services $300"]
["MI",null,23,23,375000,null,10,null,"$10,000",null,null,7,null,null,null,null,"Paratransit(9-20)",null,null,null,null,null,null,null,null,null,null,null,null,null,null,null,null,null,null,null,null,null,null,"ND-Additional Aggregate Limits $10000-Weekly Maximum WL Or SL For Loss of Contributions $100"]
["MN",null,24,24,450000,null,11,null,"$20,000",null,null,8,null,null,null,null,"Paratransit(Over 60)",null,null,null,null,null,null,null,null,null,null,null,null,null,null,null,null,null,null,null,null,null,null,"ND-Additional Aggregate Limits $50000-Weekly Maximum WL Or SL For Loss of Contributions $200"]
["MS",null,25,25,600000,null,12,null," ",null,null,null,null,null,null,null,"Public Auto Not Otherwise Classified",null,null,null,null,null,null,null,null,null,null,null,null,null,null,null,null,null,null,null,null,null,null,"ND-Additional Aggregate Limits $70000-Weekly Maximum WL Or SL For Loss of Contributions $200"]
["MO",null,26,26,750000,null,13,null,null,null,null,null,null,null,null,null,"Public Auto Not Otherwise Classified",null,null,null,null,null,null,null,null,null,null,null,null,null,null,null,null,null,null,null,null,null,null,"ND-Additional Aggregate Limits $80000-Weekly Maximum WL Or SL For Loss of Contributions $200"]
["MT",null,27,27," ",null,null,null,null,null,null,null,null,null,null,null,"School Bus Owned By Political Subdivision Or School District(1-8)",null,null,null,null,null,null,null,null,null,null,null,null,null,null,null,null,null,null,null,null,null,null,"NJ-Weekly Income Benefit $100-Total Aggregate Income Benefit $10400-Per Day ES Benefit $12-Aggregate ES Benefit $8760-Death Benefit $10000-Funeral $2000"]
["NE",null,28,28,null,null,null,null,null,null,null,null,null,null,null,null,"School Bus Owned By Political Subdivision Or School District(21-60)",null,null,null,null,null,null,null,null,null,null,null,null,null,null,null,null,null,null,null,null,null,null,"NJ-Weekly Income Benefit $100-Total Aggregate Income Benefit $Unlimited-Per Day ES Benefit $12-Aggregate ES Benefit $8760-Death Benefit $10000-Funeral $2000"]
["NV",null,29,29,null,null,null,null,null,null,null,null,null,null,null,null,"School Bus Owned By Political Subdivision Or School District(9-20)",null,null,null,null,null,null,null,null,null,null,null,null,null,null,null,null,null,null,null,null,null,null,"NJ-Weekly Income Benefit $125-Total Aggregate Income Benefit $13000-Per Day ES Benefit $20-Aggregate ES Benefit $14600-Death Benefit $10000-Funeral $2000"]
["NH",null,30,30,null,null,null,null,null,null,null,null,null,null,null,null,"School Bus Owned By Political Subdivision Or School District(Over 60)",null,null,null,null,null,null,null,null,null,null,null,null,null,null,null,null,null,null,null,null,null,null,"NJ-Weekly Income Benefit $125-Total Aggregate Income Benefit $Unlimited-Per Day ES Benefit $20-Aggregate ES Benefit $14600-Death Benefit $10000-Funeral $2000"]
["NJ",null,31,31,null,null,null,null,null,null,null,null,null,null,null,null,"Sightseeing Bus(1-8)",null,null,null,null,null,null,null,null,null,null,null,null,null,null,null,null,null,null,null,null,null,null,"NJ-Weekly Income Benefit $175-Total Aggregate Income Benefit $18200-Per Day ES Benefit $20-Aggregate ES Benefit $14600-Death Benefit $10000-Funeral $2000"]
["NM",null,32,32,null,null,null,null,null,null,null,null,null,null,null,null,"Sightseeing Bus(21-60)",null,null,null,null,null,null,null,null,null,null,null,null,null,null,null,null,null,null,null,null,null,null,"NJ-Weekly Income Benefit $175-Total Aggregate Income Benefit $Unlimited-Per Day ES Benefit $20-Aggregate ES Benefit $14600-Death Benefit $10000-Funeral $2000"]
["NY",null,33,33,null,null,null,null,null,null,null,null,null,null,null,null,"Sightseeing Bus(9-20)",null,null,null,null,null,null,null,null,null,null,null,null,null,null,null,null,null,null,null,null,null,null,"NJ-Weekly Income Benefit $250-Total Aggregate Income Benefit $26000-Per Day ES Benefit $20-Aggregate ES Benefit $14600-Death Benefit $10000-Funeral $2000"]
["NC",null,34,34,null,null,null,null,null,null,null,null,null,null,null,null,"Sightseeing Bus(Over 60)",null,null,null,null,null,null,null,null,null,null,null,null,null,null,null,null,null,null,null,null,null,null,"NJ-Weekly Income Benefit $250-Total Aggregate Income Benefit $Unlimited-Per Day ES Benefit $20-Aggregate ES Benefit $14600-Death Benefit $10000-Funeral $2000"]
["ND",null,35,35,null,1,1,null,null,null,null,null,null,null,null,null,"Social Service Agency Auto All Other(1-8)",null,null,null,null,null,null,null,null,null,null,null,null,null,null,null,null,null,null,null,null,null,null,"NJ-Weekly Income Benefit $400-Total Aggregate Income Benefit $41600-Per Day ES Benefit $20-Aggregate ES Benefit $14600-Death Benefit $10000-Funeral $2000"]
["OH",null,36,36,null,2,2,null,null,null,null,null,null,null,null,null,"Social Service Agency Auto All Other(21-60)",null,null,null,null,null,null,null,null,null,null,null,null,null,null,null,null,null,null,null,null,null,null,"NJ-Weekly Income Benefit $400-Total Aggregate Income Benefit $Unlimited-Per Day ES Benefit $20-Aggregate ES Benefit $14600-Death Benefit $10000-Funeral $2000"]
["OK",null,37,37,null,3,3,null,null,null,null,null,null,null,null,null,"Social Service Agency Auto All Other(9-20)",null,null,null,null,null,null,null,null,null,null,null,null,null,null,null,null,null,null,null,null,null,null,"NJ-Weekly Income Benefit $500-Total Aggregate Income Benefit $52000-Per Day ES Benefit $20-Aggregate ES Benefit $14600-Death Benefit $10000-Funeral $2000"]
["OR",null,38,38,null,null,null,null,null,null,null,null,null,null,null,null,"Social Service Agency Auto All Other(Over 60)",null,null,null,null,null,null,null,null,null,null,null,null,null,null,null,null,null,null,null,null,null,null,"NJ-Weekly Income Benefit $500-Total Aggregate Income Benefit $Unlimited-Per Day ES Benefit $20-Aggregate ES Benefit $14600-Death Benefit $10000-Funeral $2000"]
["PA",null,39,39,null,null,null,null,null,null,null,null,null,null,null,null,"Social Service Agency Auto Employee operated(1-8)",null,null,null,null,null,null,null,null,null,null,null,null,null,null,null,null,null,null,null,null,null,null,"NJ-Weekly Income Benefit $600-Total Aggregate Income Benefit $62400-Per Day ES Benefit $20-Aggregate ES Benefit $14600-Death Benefit $10000-Funeral $2000"]
["RI",null,40,40,null,null,null,null,null,null,null,null,null,null,null,null,"Social Service Agency Auto Employee operated(21-60)",null,null,null,null,null,null,null,null,null,null,null,null,null,null,null,null,null,null,null,null,null,null,"NJ-Weekly Income Benefit $600-Total Aggregate Income Benefit $Unlimited-Per Day ES Benefit $20-Aggregate ES Benefit $14600-Death Benefit $10000-Funeral $2000"]
["SC",null,41,41,null,null,null,null,null,null,null,null,null,null,null,null,"Social Service Agency Auto Employee operated(9-20)",null,null,null,null,null,null,null,null,null,null,null,null,null,null,null,null,null,null,null,null,null,null,"NJ-Weekly Income Benefit $700-Total Aggregate Income Benefit $72800-Per Day ES Benefit $20-Aggregate ES Benefit $14600-Death Benefit $10000-Funeral $2000"]
["SD",null,42,42,null,1,null,null,null,null,null,null,null,null,null,null,"Social Service Agency Auto Employee operated(Over 60)",null,null,null,null,null,null,null,null,null,null,null,null,null,null,null,null,null,null,null,null,null,null,"NJ-Weekly Income Benefit $700-Total Aggregate Income Benefit $Unlimited-Per Day ES Benefit $20-Aggregate ES Benefit $14600-Death Benefit $10000-Funeral $2000"]
["TN",null,43,43,null,1,null,null,null,null,null,null,null,null,null,null,"Street Hail Livery - All Other",null,null,null,null,null,null,null,null,null,null,null,null,null,null,null,null,null,null,null,null,null,null,"No PIP"]
["TX",null,44,44,null,2,null,null,null,null,null,null,null,null,null,null,"Street Hail Livery - Owner-Driver",null,null,null,null,null,null,null,null,null,null,null,null,null,null,null,null,null,null,null,null,null,null,"NY-Additional Limits of Combined Medical Expense and WL $100000-Additional Monthly WL $2000Additional ES Limit $25"]
["UT",null,45,45,null,3,null,null,null,null,null,null,null,null,null,null,"Taxicab - All Other",null,null,null,null,null,null,null,null,null,null,null,null,null,null,null,null,null,null,null,null,null,null,"NY-Additional Limits of Combined Medical Expense and WL $150000-Additional Monthly WL $3000Additional ES Limit $25"]
["VT",null,46,46,null,4,null,null,null,null,null,null,null,null,null,null,"Taxicab -Owner-driver",null,null,null,null,null,null,null,null,null,null,null,null,null,null,null,null,null,null,null,null,null,null,"NY-Additional Limits of Combined Medical Expense and WL $25000-Additional Monthly WL $500Additional ES Limit $25"]
["VA",null,47,47,null,null,null,null,null,null,null,null,null,null,null,null,"Transportation Of Athletes And Entertainers(1-8)",null,null,null,null,null,null,null,null,null,null,null,null,null,null,null,null,null,null,null,null,null,null,"NY-Additional Limits of Combined Medical Expense and WL $50000-Additional Monthly WL $1000Additional ES Limit $25"]
["WA",null,48,48,null,null,null,null,null,null,null,null,null,null,null,null,"Transportation Of Athletes And Entertainers(21-60)",null,null,null,null,null,null,null,null,null,null,null,null,null,null,null,null,null,null,null,null,null,null,"PA-Additional Monthly WL$1000/15000-Medical Expenses $100000-Funeral $1500-Accidental Death Benefits $10000"]
["WV",null,49,49,null,null,null,null,null,null,null,null,null,null,null,null,"Transportation Of Athletes And Entertainers(9-20)",null,null,null,null,null,null,null,null,null,null,null,null,null,null,null,null,null,null,null,null,null,null,"PA-Additional Monthly WL$1000/15000-Medical Expenses $100000-Funeral $1500-Accidental Death Benefits $25000"]
["WI",null,50,50,null,null,null,null,null,null,null,null,null,null,null,null,"Transportation Of Athletes And Entertainers(Over 60)",null,null,null,null,null,null,null,null,null,null,null,null,null,null,null,null,null,null,null,null,null,null,"PA-Additional Monthly WL$1000/15000-Medical Expenses $100000-Funeral $1500-Accidental Death Benefits $5000"]
["WY",null,51,51,null,null,null,null,null,null,null,null,null,null,null,null,"Urban Bus(1-8)",null,null,null,null,null,null,null,null,null,null,null,null,null,null,null,null,null,null,null,null,null,null,"PA-Additional Monthly WL$1000/15000-Medical Expenses $100000-Funeral $2500-Accidental Death Benefits $10000"]
[" ",null,null,null,null,null,null,null,null,null,null,null,null,null,null,null,"Urban Bus(21-60)",null,null,null,null,null,null,null,null,null,null,null,null,null,null,null,null,null,null,null,null,null,null,"PA-Additional Monthly WL$1000/15000-Medical Expenses $100000-Funeral $2500-Accidental Death Benefits $25000"]
[null,null,null,null,null,null,null,null,null,null,null,null,null,null,null,null,"Urban Bus(9-20)",null,null,null,null,null,null,null,null,null,null,null,null,null,null,null,null,null,null,null,null,null,null,"PA-Additional Monthly WL$1000/15000-Medical Expenses $100000-Funeral $2500-Accidental Death Benefits $5000"]
["Subsidiary/Affiliate",null,2,1,null,null,null,null,null,null,null,null,null,null,null,null,"Urban Bus(Over 60)",null,null,null,null,null,null,null,null,null,null,null,null,null,null,null,null,null,null,null,null,null,null,"PA-Additional Monthly WL$1000/15000-Medical Expenses $10000-Funeral $1500-Accidental Death Benefits $10000"]
[" ",null,1,1,null,null,null,null,null,null,null,null,null,null,null,null,"Jitney",null,null,null,null,null,null,null,null,null,null,null,null,null,null,null,null,null,null,null,null,null,null,"PA-Additional Monthly WL$1000/15000-Medical Expenses $10000-Funeral $1500-Accidental Death Benefits $25000"]
["Subsidiary  ",null,2,2,null,null,null,null,null,null,null,null,null,null,null,null,null,null,null,null,null,null,null,null,null,null,null,null,null,null,null,null,null,null,null,null,null,null,null,"PA-Additional Monthly WL$1000/15000-Medical Expenses $10000-Funeral $1500-Accidental Death Benefits $5000"]
["Affiliate",null,3,3,null,null,null,null,null,null,null,null,null,null,null,null,null,null,null,null,null,null,null,null,null,null,null,null,null,null,null,null,null,null,null,null,null,null,null,"PA-Additional Monthly WL$1000/15000-Medical Expenses $10000-Funeral $2500-Accidental Death Benefits $10000"]
[" ",null,null,null,null,null,null,null,null,null,null,null,null,null,null,null,null,null,null,null,null,null,null,null,null,null,null,null,null,null,null,null,null,null,null,null,null,null,null,"PA-Additional Monthly WL$1000/15000-Medical Expenses $10000-Funeral $2500-Accidental Death Benefits $25000"]
[null,null,null,null,null,null,null,null,null,null,null,null,null,null,null,null,null,null,null,null,null,null,null,null,null,null,null,null,null,null,null,null,null,null,null,null,null,null,null,"PA-Additional Monthly WL$1000/15000-Medical Expenses $10000-Funeral $2500-Accidental Death Benefits $5000"]
["Included in Insurance?",null,1,1,null,null,null,null,null,null,null,null,null,null,null,null,null,null,null,null,null,null,null,null,null,null,null,null,null,null,null,null,null,null,null,null,null,null,null,"PA-Additional Monthly WL$1000/15000-Medical Expenses $50000-Funeral $1500-Accidental Death Benefits $10000"]
[" ",null,1,1,null,null,null,null,null,null,null,null,null,null,null,null,null,null,null,null,null,null,null,null,null,null,null,null,null,null,null,null,null,null,null,null,null,null,null,"PA-Additional Monthly WL$1000/15000-Medical Expenses $50000-Funeral $1500-Accidental Death Benefits $25000"]
["Yes",null,2,2,null,null,null,null,null,null,null,null,null,null,null,null,null,null,null,null,null,null,null,null,null,null,null,null,null,null,null,null,null,null,null,null,null,null,null,"PA-Additional Monthly WL$1000/15000-Medical Expenses $50000-Funeral $1500-Accidental Death Benefits $5000"]
["No",null,3,3,null,null,null,null,null,null,null,null,null,null,null,null,null,null,null,null,null,null,null,null,null,null,null,null,null,null,null,null,null,null,null,null,null,null,null,"PA-Additional Monthly WL$1000/15000-Medical Expenses $50000-Funeral $2500-Accidental Death Benefits $10000"]
[" ",null,null,null,null,null,null,null,null,null,null,null,null,null,null,null,null,null,null,null,null,null,null,null,null,null,null,null,null,null,null,null,null,null,null,null,null,null,null,"PA-Additional Monthly WL$1000/15000-Medical Expenses $50000-Funeral $2500-Accidental Death Benefits $25000"]
[null,null,null,null,null,null,null,null,null,null,null,null,null,null,null,null,null,null,null,null,null,null,null,null,null,null,null,null,null,null,null,null,null,null,null,null,null,null,null,"PA-Additional Monthly WL$1000/15000-Medical Expenses $50000-Funeral $2500-Accidental Death Benefits $5000"]
["UM/UIM",null,null,null,null,null,null,null,null,null,null,null,null,null,null,null,null,null,null,null,null,null,null,null,null,null,null,null,null,null,null,null,null,null,null,null,null,null,null,"PA-Additional Monthly WL$1000/5000-Medical Expenses $100000-Funeral $1500-Accidental Death Benefits $10000"]
[null,null,null,null,null,null,null,null,null,null,null,null,null,null,null,null,null,null,null,null,null,null,null,null,null,null,null,null,null,null,null,null,null,null,null,null,null,null,null,"PA-Additional Monthly WL$1000/5000-Medical Expenses $100000-Funeral $1500-Accidental Death Benefits $25000"]
[null,null,null,null,null,null,null,null,null,null,null,null,null,null,null,null,null,null,null,null,null,null,null,null,null,null,null,null,null,null,null,null,null,null,null,null,null,null,null,"PA-Additional Monthly WL$1000/5000-Medical Expenses $100000-Funeral $1500-Accidental Death Benefits $5000"]
[null,null,null,null,null,null,null,null,null,null,null,null,null,null,null,null,null,null,null,null,null,null,null,null,null,null,null,null,null,null,null,null,null,null,null,null,null,null,null,"PA-Additional Monthly WL$1000/5000-Medical Expenses $100000-Funeral $2500-Accidental Death Benefits $10000"]
[null,null,null,null,null,null,null,null,null,null,null,null,null,null,null,null,null,null,null,null,null,null,null,null,null,null,null,null,null,null,null,null,null,null,null,null,null,null,null,"PA-Additional Monthly WL$1000/5000-Medical Expenses $100000-Funeral $2500-Accidental Death Benefits $25000"]
[null,null,null,null,null,null,null,null,null,null,null,null,null,null,null,null,null,null,null,null,null,null,null,null,null,null,null,null,null,null,null,null,null,null,null,null,null,null,null,"PA-Additional Monthly WL$1000/5000-Medical Expenses $100000-Funeral $2500-Accidental Death Benefits $5000"]
[null,null,null,null,null,null,null,null,null,null,null,null,null,null,null,null,null,null,null,null,null,null,null,null,null,null,null,null,null,null,null,null,null,null,null,null,null,null,null,"PA-Additional Monthly WL$1000/5000-Medical Expenses $10000-Funeral $1500-Accidental Death Benefits $10000"]
[null,null,null,null,null,null,null,null,null,null,null,null,null,null,null,null,null,null,null,null,null,null,null,null,null,null,null,null,null,null,null,null,null,null,null,null,null,null,null,"PA-Additional Monthly WL$1000/5000-Medical Expenses $10000-Funeral $1500-Accidental Death Benefits $25000"]
[null,null,null,null,null,null,null,null,null,null,null,null,null,null,null,null,null,null,null,null,null,null,null,null,null,null,null,null,null,null,null,null,null,null,null,null,null,null,null,"PA-Additional Monthly WL$1000/5000-Medical Expenses $10000-Funeral $1500-Accidental Death Benefits $5000"]
[null,null,null,null,null,null,null,null,null,null,null,null,null,null,null,null,null,null,null,null,null,null,null,null,null,null,null,null,null,null,null,null,null,null,null,null,null,null,null,"PA-Additional Monthly WL$1000/5000-Medical Expenses $10000-Funeral $2500-Accidental Death Benefits $10000"]
[null,null,null,null,null,null,null,null,null,null,null,null,null,null,null,null,null,null,null,null,null,null,null,null,null,null,null,null,null,null,null,null,null,null,null,null,null,null,null,"PA-Additional Monthly WL$1000/5000-Medical Expenses $10000-Funeral $2500-Accidental Death Benefits $25000"]
["Nonowned Liability",null,null,null,null,null,null,null,null,null,null,null,null,null,null,null,null,null,null,null,null,null,null,null,null,null,null,null,null,null,null,null,null,null,null,null,null,null,null,"PA-Additional Monthly WL$1000/5000-Medical Expenses $10000-Funeral $2500-Accidental Death Benefits $5000"]
[null,null,null,null,null,null,null,null,null,null,null,null,null,null,null,null,null,null,null,null,null,null,null,null,null,null,null,null,null,null,null,null,null,null,null,null,null,null,null,"PA-Additional Monthly WL$1000/5000-Medical Expenses $25000-Funeral $1500-Accidental Death Benefits $10000"]
[null,null,null,null,null,null,null,null,null,null,null,null,null,null,null,null,null,null,null,null,null,null,null,null,null,null,null,null,null,null,null,null,null,null,null,null,null,null,null,"PA-Additional Monthly WL$1000/5000-Medical Expenses $25000-Funeral $1500-Accidental Death Benefits $25000"]
[null,null,null,null,null,null,null,null,null,null,null,null,null,null,null,null,null,null,null,null,null,null,null,null,null,null,null,null,null,null,null,null,null,null,null,null,null,null,null,"PA-Additional Monthly WL$1000/5000-Medical Expenses $25000-Funeral $1500-Accidental Death Benefits $5000"]
[null,null,null,null,null,null,null,null,null,null,null,null,null,null,null,null,null,null,null,null,null,null,null,null,null,null,null,null,null,null,null,null,null,null,null,null,null,null,null,"PA-Additional Monthly WL$1000/5000-Medical Expenses $25000-Funeral $2500-Accidental Death Benefits $10000"]
[null,null,null,null,null,null,null,null,null,null,null,null,null,null,null,null,null,null,null,null,null,null,null,null,null,null,null,null,null,null,null,null,null,null,null,null,null,null,null,"PA-Additional Monthly WL$1000/5000-Medical Expenses $25000-Funeral $2500-Accidental Death Benefits $25000"]
[null,null,null,null,null,null,null,null,null,null,null,null,null,null,null,null,null,null,null,null,null,null,null,null,null,null,null,null,null,null,null,null,null,null,null,null,null,null,null,"PA-Additional Monthly WL$1000/5000-Medical Expenses $25000-Funeral $2500-Accidental Death Benefits $5000"]
[null,null,null,null,null,null,null,null,null,null,null,null,null,null,null,null,null,null,null,null,null,null,null,null,null,null,null,null,null,null,null,null,null,null,null,null,null,null,null,"PA-Additional Monthly WL$1000/5000-Medical Expenses $50000-Funeral $1500-Accidental Death Benefits $10000"]
[null,null,null,null,null,null,null,null,null,null,null,null,null,null,null,null,null,null,null,null,null,null,null,null,null,null,null,null,null,null,null,null,null,null,null,null,null,null,null,"PA-Additional Monthly WL$1000/5000-Medical Expenses $50000-Funeral $1500-Accidental Death Benefits $25000"]
[null,null,null,null,null,null,null,null,null,null,null,null,null,null,null,null,null,null,null,null,null,null,null,null,null,null,null,null,null,null,null,null,null,null,null,null,null,null,null,"PA-Additional Monthly WL$1000/5000-Medical Expenses $50000-Funeral $1500-Accidental Death Benefits $5000"]
[null,null,null,null,null,null,null,null,null,null,null,null,null,null,null,null,null,null,null,null,null,null,null,null,null,null,null,null,null,null,null,null,null,null,null,null,null,null,null,"PA-Additional Monthly WL$1000/5000-Medical Expenses $50000-Funeral $2500-Accidental Death Benefits $10000"]
[null,null,null,null,null,null,null,null,null,null,null,null,null,null,null,null,null,null,null,null,null,null,null,null,null,null,null,null,null,null,null,null,null,null,null,null,null,null,null,"PA-Additional Monthly WL$1000/5000-Medical Expenses $50000-Funeral $2500-Accidental Death Benefits $25000"]
["Phys. Dam Deductibles",null,null,null,null,null,null,null,null,null,null,null,null,null,null,null,null,null,null,null,null,null,null,null,null,null,null,null,null,null,null,null,null,null,null,null,null,null,null,"PA-Additional Monthly WL$1000/5000-Medical Expenses $50000-Funeral $2500-Accidental Death Benefits $5000"]
[null,"Specified Perils",1,2,null,null,null,null,null,null,null,null,null,null,null,null,null,null,null,null,null,null,null,null,null,null,null,null,null,null,null,null,null,null,null,null,null,null,null,"PA-Additional Monthly WL$1500/25000-Medical Expenses $100000-Funeral $1500-Accidental Death Benefits $10000"]
[null,"Comprehensive",1,1,null,null,null,null,null,null,null,null,null,null,null,null,null,null,null,null,null,null,null,null,null,null,null,null,null,null,null,null,null,null,null,null,null,null,null,"PA-Additional Monthly WL$1500/25000-Medical Expenses $100000-Funeral $1500-Accidental Death Benefits $25000"]
[null,"Collision",1,2,null,null,null,null,null,null,null,null,null,null,null,null,null,null,null,null,null,null,null,null,null,null,null,null,null,null,null,null,null,null,null,null,null,null,null,"PA-Additional Monthly WL$1500/25000-Medical Expenses $100000-Funeral $1500-Accidental Death Benefits $5000"]
[" ",null,1,1,null,null,null,null,null,null,null,null,null,null,null,null,null,null,null,null,null,null,null,null,null,null,null,null,null,null,null,null,null,null,null,null,null,null,null,"PA-Additional Monthly WL$1500/25000-Medical Expenses $100000-Funeral $2500-Accidental Death Benefits $10000"]
["$1,000",null,2,2,null,null,null,null,null,null,null,null,null,null,null,null,null,null,null,null,null,null,null,null,null,null,null,null,null,null,null,null,null,null,null,null,null,null,null,"PA-Additional Monthly WL$1500/25000-Medical Expenses $100000-Funeral $2500-Accidental Death Benefits $25000"]
["$2,500",null,3,3,null,null,null,null,null,null,null,null,null,null,null,null,null,null,null,null,null,null,null,null,null,null,null,null,null,null,null,null,null,null,null,null,null,null,null,"PA-Additional Monthly WL$1500/25000-Medical Expenses $100000-Funeral $2500-Accidental Death Benefits $5000"]
["$5,000",null,4,4,null,null,null,null,null,null,null,null,null,null,null,null,null,null,null,null,null,null,null,null,null,null,null,null,null,null,null,null,null,null,null,null,null,null,null,"PA-Additional Monthly WL$1500/25000-Medical Expenses $10000-Funeral $1500-Accidental Death Benefits $10000"]
["$10,000",null,5,5,null,null,null,null,null,null,null,null,null,null,null,null,null,null,null,null,null,null,null,null,null,null,null,null,null,null,null,null,null,null,null,null,null,null,null,"PA-Additional Monthly WL$1500/25000-Medical Expenses $10000-Funeral $1500-Accidental Death Benefits $25000"]
["$20,000",null,6,6,null,null,null,null,null,null,null,null,null,null,null,null,null,null,null,null,null,null,null,null,null,null,null,null,null,null,null,null,null,null,null,null,null,null,null,"PA-Additional Monthly WL$1500/25000-Medical Expenses $10000-Funeral $1500-Accidental Death Benefits $5000"]
[" ",null,null,null,null,null,null,null,null,null,null,null,null,null,null,null,null,null,null,null,null,null,null,null,null,null,null,null,null,null,null,null,null,null,null,null,null,null,null,"PA-Additional Monthly WL$1500/25000-Medical Expenses $10000-Funeral $2500-Accidental Death Benefits $10000"]
[null,null,null,null,null,null,null,null,null,null,null,null,null,null,null,null,null,null,null,null,null,null,null,null,null,null,null,null,null,null,null,null,null,null,null,null,null,null,null,"PA-Additional Monthly WL$1500/25000-Medical Expenses $10000-Funeral $2500-Accidental Death Benefits $25000"]
["Location Classes",null,null,4,null,null,null,null,null,null,null,null,null,null,null,null,null,null,null,null,null,null,null,null,null,null,null,null,null,null,null,null,null,null,null,null,null,null,null,"PA-Additional Monthly WL$1500/25000-Medical Expenses $10000-Funeral $2500-Accidental Death Benefits $5000"]
[null,"Location 1",1,2,null,null,null,null,null,null,null,null,null,null,null,null,null,null,null,null,null,null,null,null,null,null,null,null,null,null,null,null,null,null,null,null,null,null,null,"PA-Additional Monthly WL$1500/25000-Medical Expenses $25000-Funeral $1500-Accidental Death Benefits $10000"]
[null,"Location 2",1,4,null,null,null,null,null,null,null,null,null,null,null,null,null,null,null,null,null,null,null,null,null,null,null,null,null,null,null,null,null,null,null,null,null,null,null,"PA-Additional Monthly WL$1500/25000-Medical Expenses $25000-Funeral $1500-Accidental Death Benefits $25000"]
[null,"Location 3",1,3,null,null,null,null,null,null,null,null,null,null,null,null,null,null,null,null,null,null,null,null,null,null,null,null,null,null,null,null,null,null,null,null,null,null,null,"PA-Additional Monthly WL$1500/25000-Medical Expenses $25000-Funeral $1500-Accidental Death Benefits $5000"]
[null,"Location 4",1,4,null,null,null,null,null,null,null,null,null,null,null,null,null,null,null,null,null,null,null,null,null,null,null,null,null,null,null,null,null,null,null,null,null,null,null,"PA-Additional Monthly WL$1500/25000-Medical Expenses $25000-Funeral $2500-Accidental Death Benefits $10000"]
[" ",null,1,1,null,null,null,null,null,null,null,null,null,null,null,null,null,null,null,null,null,null,null,null,null,null,null,null,null,null,null,null,null,null,null,null,null,null,null,"PA-Additional Monthly WL$1500/25000-Medical Expenses $25000-Funeral $2500-Accidental Death Benefits $25000"]
["Office",null,2,2,null,null,null,null,null,null,null,null,null,null,null,null,null,null,null,null,null,null,null,null,null,null,null,null,null,null,null,null,null,null,null,null,null,null,null,"PA-Additional Monthly WL$1500/25000-Medical Expenses $25000-Funeral $2500-Accidental Death Benefits $5000"]
["Parking Lot",null,3,3,null,null,null,null,null,null,null,null,null,null,null,null,null,null,null,null,null,null,null,null,null,null,null,null,null,null,null,null,null,null,null,null,null,null,null,"PA-Additional Monthly WL$1500/25000-Medical Expenses $50000-Funeral $1500-Accidental Death Benefits $10000"]
["Indoor Parking Facility",null,4,4,null,null,null,null,null,null,null,null,null,null,null,null,null,null,null,null,null,null,null,null,null,null,null,null,null,null,null,null,null,null,null,null,null,null,null,"PA-Additional Monthly WL$1500/25000-Medical Expenses $50000-Funeral $1500-Accidental Death Benefits $25000"]
[null,null,null,null,null,null,null,null,null,null,null,null,null,null,null,null,null,null,null,null,null,null,null,null,null,null,null,null,null,null,null,null,null,null,null,null,null,null,null,"PA-Additional Monthly WL$1500/25000-Medical Expenses $50000-Funeral $1500-Accidental Death Benefits $5000"]
["Limits Requested Questions",null,null,null,null,null,null,null,null,null,null,null,null,null,null,null,null,null,null,null,null,null,null,null,null,null,null,null,null,null,null,null,null,null,null,null,null,null,null,"PA-Additional Monthly WL$1500/25000-Medical Expenses $50000-Funeral $2500-Accidental Death Benefits $10000"]
[null,"Products Comp. Operations ",1,1,null,null,null,null,null,null,null,null,null,null,null,null,null,null,null,null,null,null,null,null,null,null,null,null,null,null,null,null,null,null,null,null,null,null,null,"PA-Additional Monthly WL$1500/25000-Medical Expenses $50000-Funeral $2500-Accidental Death Benefits $25000"]
[null,"Parking owned?",1,1,null,null,null,null,null,null,null,null,null,null,null,null,null,null,null,null,null,null,null,null,null,null,null,null,null,null,null,null,null,null,null,null,null,null,null,"PA-Additional Monthly WL$1500/25000-Medical Expenses $50000-Funeral $2500-Accidental Death Benefits $5000"]
[null,"Fee Charged?",1,1,null,null,null,null,null,null,null,null,null,null,null,null,null,null,null,null,null,null,null,null,null,null,null,null,null,null,null,null,null,null,null,null,null,null,null,"PA-Additional Monthly WL$2500/50000-Medical Expenses $100000-Funeral $1500-Accidental Death Benefits $10000"]
[" ",null,1,1,null,null,null,null,null,null,null,null,null,null,null,null,null,null,null,null,null,null,null,null,null,null,null,null,null,null,null,null,null,null,null,null,null,null,null,"PA-Additional Monthly WL$2500/50000-Medical Expenses $100000-Funeral $1500-Accidental Death Benefits $25000"]
["Yes",null,2,2,null,null,null,null,null,null,null,null,null,null,null,null,null,null,null,null,null,null,null,null,null,null,null,null,null,null,null,null,null,null,null,null,null,null,null,"PA-Additional Monthly WL$2500/50000-Medical Expenses $100000-Funeral $1500-Accidental Death Benefits $5000"]
["No",null,3,3,null,null,null,null,null,null,null,null,null,null,null,null,null,null,null,null,null,null,null,null,null,null,null,null,null,null,null,null,null,null,null,null,null,null,null,"PA-Additional Monthly WL$2500/50000-Medical Expenses $100000-Funeral $2500-Accidental Death Benefits $10000"]
[null,null,null,null,null,null,null,null,null,null,null,null,null,null,null,null,null,null,null,null,null,null,null,null,null,null,null,null,null,null,null,null,null,null,null,null,null,null,null,"PA-Additional Monthly WL$2500/50000-Medical Expenses $100000-Funeral $2500-Accidental Death Benefits $25000"]
["Owned or Rented?",null,null,null,null,null,null,null,null,null,null,null,null,null,null,null,null,null,null,null,null,null,null,null,null,null,null,null,null,null,null,null,null,null,null,null,null,null,null,"PA-Additional Monthly WL$2500/50000-Medical Expenses $100000-Funeral $2500-Accidental Death Benefits $5000"]
[null,"Location 1",1,2,null,null,null,null,null,null,null,null,null,null,null,null,null,null,null,null,null,null,null,null,null,null,null,null,null,null,null,null,null,null,null,null,null,null,null,"PA-Additional Monthly WL$2500/50000-Medical Expenses $10000-Funeral $1500-Accidental Death Benefits $10000"]
[null,"Location 2",1,2,null,null,null,null,null,null,null,null,null,null,null,null,null,null,null,null,null,null,null,null,null,null,null,null,null,null,null,null,null,null,null,null,null,null,null,"PA-Additional Monthly WL$2500/50000-Medical Expenses $10000-Funeral $1500-Accidental Death Benefits $25000"]
[null,"Location 3",1,2,null,null,null,null,null,null,null,null,null,null,null,null,null,null,null,null,null,null,null,null,null,null,null,null,null,null,null,null,null,null,null,null,null,null,null,"PA-Additional Monthly WL$2500/50000-Medical Expenses $10000-Funeral $1500-Accidental Death Benefits $5000"]
[null,"Location 4",1,2,null,null,null,null,null,null,null,null,null,null,null,null,null,null,null,null,null,null,null,null,null,null,null,null,null,null,null,null,null,null,null,null,null,null,null,"PA-Additional Monthly WL$2500/50000-Medical Expenses $10000-Funeral $2500-Accidental Death Benefits $10000"]
[" ",null,1,1,null,null,null,null,null,null,null,null,null,null,null,null,null,null,null,null,null,null,null,null,null,null,null,null,null,null,null,null,null,null,null,null,null,null,null,"PA-Additional Monthly WL$2500/50000-Medical Expenses $10000-Funeral $2500-Accidental Death Benefits $25000"]
["Owned",null,2,2,null,null,null,null,null,null,null,null,null,null,null,null,null,null,null,null,null,null,null,null,null,null,null,null,null,null,null,null,null,null,null,null,null,null,null,"PA-Additional Monthly WL$2500/50000-Medical Expenses $10000-Funeral $2500-Accidental Death Benefits $5000"]
["Rented",null,3,3,null,null,null,null,null,null,null,null,null,null,null,null,null,null,null,null,null,null,null,null,null,null,null,null,null,null,null,null,null,null,null,null,null,null,null,"PA-Additional Monthly WL$2500/50000-Medical Expenses $25000-Funeral $1500-Accidental Death Benefits $10000"]
[" ",null,null,null,null,null,null,null,null,null,null,null,null,null,null,null,null,null,null,null,null,null,null,null,null,null,null,null,null,null,null,null,null,null,null,null,null,null,null,"PA-Additional Monthly WL$2500/50000-Medical Expenses $25000-Funeral $1500-Accidental Death Benefits $25000"]
[null,null,null,null,null,null,null,null,null,null,null,null,null,null,null,null,null,null,null,null,null,null,null,null,null,null,null,null,null,null,null,null,null,null,null,null,null,null,null,"PA-Additional Monthly WL$2500/50000-Medical Expenses $25000-Funeral $1500-Accidental Death Benefits $5000"]
["Fenced?",null,null,null,null,null,null,null,null,null,null,null,null,null,null,null,null,null,null,null,null,null,null,null,null,null,null,null,null,null,null,null,null,null,null,null,null,null,null,"PA-Additional Monthly WL$2500/50000-Medical Expenses $25000-Funeral $2500-Accidental Death Benefits $10000"]
[null,"Location 1",1,3,null,null,null,null,null,null,null,null,null,null,null,null,null,null,null,null,null,null,null,null,null,null,null,null,null,null,null,null,null,null,null,null,null,null,null,"PA-Additional Monthly WL$2500/50000-Medical Expenses $25000-Funeral $2500-Accidental Death Benefits $25000"]
[null,"Location 2",1,3,null,null,null,null,null,null,null,null,null,null,null,null,null,null,null,null,null,null,null,null,null,null,null,null,null,null,null,null,null,null,null,null,null,null,null,"PA-Additional Monthly WL$2500/50000-Medical Expenses $25000-Funeral $2500-Accidental Death Benefits $5000"]
[null,"Location 3",1,3,null,null,null,null,null,null,null,null,null,null,null,null,null,null,null,null,null,null,null,null,null,null,null,null,null,null,null,null,null,null,null,null,null,null,null,"PA-Additional Monthly WL$2500/50000-Medical Expenses $50000-Funeral $1500-Accidental Death Benefits $10000"]
[null,"Location 4",1,3,null,null,null,null,null,null,null,null,null,null,null,null,null,null,null,null,null,null,null,null,null,null,null,null,null,null,null,null,null,null,null,null,null,null,null,"PA-Additional Monthly WL$2500/50000-Medical Expenses $50000-Funeral $1500-Accidental Death Benefits $25000"]
[" ",null,1,1,null,null,null,null,null,null,null,null,null,null,null,null,null,null,null,null,null,null,null,null,null,null,null,null,null,null,null,null,null,null,null,null,null,null,null,"PA-Additional Monthly WL$2500/50000-Medical Expenses $50000-Funeral $1500-Accidental Death Benefits $5000"]
["Yes",null,2,2,null,null,null,null,null,null,null,null,null,null,null,null,null,null,null,null,null,null,null,null,null,null,null,null,null,null,null,null,null,null,null,null,null,null,null,"PA-Additional Monthly WL$2500/50000-Medical Expenses $50000-Funeral $2500-Accidental Death Benefits $10000"]
["No",null,3,3,null,null,null,null,null,null,null,null,null,null,null,null,null,null,null,null,null,null,null,null,null,null,null,null,null,null,null,null,null,null,null,null,null,null,null,"PA-Additional Monthly WL$2500/50000-Medical Expenses $50000-Funeral $2500-Accidental Death Benefits $25000"]
[" ",null,null,null,null,null,null,null,null,null,null,null,null,null,null,null,null,null,null,null,null,null,null,null,null,null,null,null,null,null,null,null,null,null,null,null,null,null,null,"PA-Additional Monthly WL$2500/50000-Medical Expenses $50000-Funeral $2500-Accidental Death Benefits $5000"]
[null,null,null,null,null,null,null,null,null,null,null,null,null,null,null,null,null,null,null,null,null,null,null,null,null,null,null,null,null,null,null,null,null,null,null,null,null,null,null,"TX-Total Aggregate Income Benefit $10000"]
["Night Watch?",null,null,null,null,null,null,null,null,null,null,null,null,null,null,null,null,null,null,null,null,null,null,null,null,null,null,null,null,null,null,null,null,null,null,null,null,null,null,"TX-Total Aggregate Income Benefit $100000"]
[null,"Location 1",1,2,null,null,null,null,null,null,null,null,null,null,null,null,null,null,null,null,null,null,null,null,null,null,null,null,null,null,null,null,null,null,null,null,null,null,null,"TX-Total Aggregate Income Benefit $25000"]
[null,"Location 2",1,2,null,null,null,null,null,null,null,null,null,null,null,null,null,null,null,null,null,null,null,null,null,null,null,null,null,null,null,null,null,null,null,null,null,null,null,"TX-Total Aggregate Income Benefit $5000"]
[null,"Location 3",1,2,null,null,null,null,null,null,null,null,null,null,null,null,null,null,null,null,null,null,null,null,null,null,null,null,null,null,null,null,null,null,null,null,null,null,null,"TX-Total Aggregate Income Benefit $50000"]
[null,"Location 4",1,2,null,null,null,null,null,null,null,null,null,null,null,null,null,null,null,null,null,null,null,null,null,null,null,null,null,null,null,null,null,null,null,null,null,null,null,"TX-Total Aggregate Income Benefit $75000"]
[" ",null,1,1,null,null,null,null,null,null,null,null,null,null,null,null,null,null,null,null,null,null,null,null,null,null,null,null,null,null,null,null,null,null,null,null,null,null,null,"UT-Medical Expenses $3000, WL 85% of any loss of gross income and earning capacity, not to exceed $250 per week and $20 per day for inability to perform services for the household, Funeral Expenses $1500, Survivor Loss $3000"]
["Yes",null,2,2,null,null,null,null,null,null,null,null,null,null,null,null,null,null,null,null,null,null,null,null,null,null,null,null,null,null,null,null,null,null,null,null,null,null,null,"UT-Weekly Income Benefit $300Medical Expenses $5000"]
["No",null,3,3,null,null,null,null,null,null,null,null,null,null,null,null,null,null,null,null,null,null,null,null,null,null,null,null,null,null,null,null,null,null,null,null,null,null,null,"UT-Weekly Income Benefit $350Medical Expenses $10000"]
[" "]
[]
["General Liability Questions"]
[null,"Residence?",1,1]
[null,"Storage?",1,1]
[" ",null,1,1]
["Yes",null,2,2]
["No",null,3,3]
[" "]
[]
["Wheelchair"]
[null,"Wheelchair equipped?",1,1]
[" ",null,1,1]
[0,null,2,2]
["1%-9%",null,3,3]
[0.1,null,4,4]
[0.2,null,5,5]
[0.3,null,6,6]
[0.4,null,7,7]
[0.5,null,8,8]
[0.6,null,9,9]
[0.7,null,10,10]
[0.8,null,11,11]
[0.9,null,12,12]
[1,null,13,13]
[" "]
[]
["Days of Operation",null,1,2]
[" ",null,1,1]
["Weekdays Only",null,2,2]
["Weekends Only",null,3,3]
["Weekdays and Weekends",null,4,4]
[" "]
[]
["Type Transported"]
[null,"Wheelchair",1,1]
[null,"Other Disabled",1,1]
[null,"Professional Athletes",1,1]
[null,"Entertainment Groups",1,1]
[null,"On Call/Dispatch",1,1]
[null,"Scheduled",1,1]
[null,"Door to Door",1,1]
[null,"Curb to Curb",1,1,null,"Radius"]
[" ",null,1,1,null,null,"0-50",1,1]
[0,null,2,2,null,null,"51-200",1,1]
[0.1,null,3,3,null,null,"200+",1,1]
[0.2,null,4,4,null," ",null,1,1]
[0.3,null,5,5,null,0,null,2,2]
[0.4,null,6,6,null,0.1,null,3,3]
[0.5,null,7,7,null,0.2,null,4,4]
[0.6,null,8,8,null,0.3,null,5,5]
[0.7,null,9,9,null,0.4,null,6,6]
[0.8,null,10,10,null,0.5,null,7,7]
[0.9,null,11,11,null,0.6,null,8,8]
[1,null,12,12,null,0.7,null,9,9]
[" ",null,null,null,null,0.8,null,10,10]
[null,null,null,null,null,0.9,null,11,11]
[null,null,null,null,null,1,null,12,12]
["Driver Questions/Filing Information",null,null,null,null," "]
[null,"Hire from others for your use?",1,1]
[null,"Hire from others with driver?",1,1]
[null,"Lease to others for their use?",1,1]
[null,"Lease to others without a driver?",1,1]
[null,"Assumed liability?",1,1]
[null,"5 Years experience?",1,1]
[null,"Agree to report drivers?",1,1]
[null,"Family members under 21?",1,1,null," "]
[null,"Drivers licensed?",1,1,null,"Yes"]
[null,"Similar vehicle?",null,1,null,"No (Explain)"]
[null,"Independent contractors?",null,1,null," "]
[null,"Guest passengers?",null,1]
[null,"Coaches or teachers?",null,1]
[null,"Written maintenance program?",null,1]
[null,"Application?",null,1]
[null,"Medical?",null,1]
[null,"Driver-training program?",null,1]
[null,"Road test?",null,1]
[null,"Drug testing?",null,1]
[null,"Safety program?",null,1]
[null,"Written test?",null,1]
[null,"Current MVR?",null,1]
[null,"Accident reporting?",null,1]
[null,"Reference checks",null,1]
[null,"Service record?",null,1]
[null,"Disciplinary plan?",null,1]
[null,"Inspections?",null,1]
[null,"Condition reports?",null,1]
[null,"Recording devices",null,1]
[null,"Radio dispatch",null,1]
[null,"Maintenance managed?",null,1]
[null,"Maintenance on all?",null,1]
[null,"Driver files?",null,1]
[null,"Accident files?",null,1]
[null,"Claims reported to NIIC?",null,1]
[null,"Safety meetings?",null,1]
[null,"FHWA Filing?",1,3]
[null,"Intra-state Filing?",1,1]
[null,"Allow others to operate?",1,1]
[" ",null,1,1]
["Yes",null,2,2]
["No",null,3,3]
[" "]
[" "]
["Historical Coverages"]
[null,"Assigned Risk Plan?",1,1]
[null,"Notice given?",1,1]
[null,"Workers' Compensation?",1,1]
[null,"Bankruptcy?",1,1]
[null,"Operating authority problems?",1,1]
[" ",null,1,1]
["Yes (Explain)",null,2,2]
["No",null,3,3]
[" "]
[]
[null,"Equipment scheduled?",1,1]
[" ",null,1,1]
["Yes ",null,2,2]
["No (Explain)",null,3,3]
[" "]
[]
["Hired, Leased, or Assumed Liability"]
["(Small Fleet)",null,null,null,"(Large Fleet)"]
[{"$f":"COUNTIF(C219:C223,2)","v":0},null,null,null,{"$f":"COUNTIF(Data!D219:D223,2)","v":0}]
[]
[]
["Supplemental Wheelchair Application"]
["(Small Fleet)",null,null,null,"(Large Fleet)"]
[{"$f":"COUNTIF(C171,1)","v":1},null,null,null,{"$f":"COUNTIF(D171,1)","v":1}]
[{"$f":"COUNTIF(C171,2)","v":0},null,null,null,{"$f":"COUNTIF(D171,2)","v":0}]
[{"$f":"COUNTIF(C171,3)","v":0},null,null,null,{"$f":"COUNTIF(D171,3)","v":0}]
[{"$f":"SUM(A287:A289)","v":1},null,null,null,{"$f":"SUM(E287:E289)","v":1}]

{"sheet":"Broker List","index":4,"n_rows":160,"n_cols":10,"rows_kept":160,"cut":false,"hidden":true,"merged":[]}
["Broker",null,null,null,null,null,"AgentName","Broker","AgentEmail","AgentPhone"]
["Advantage One Insurance",null,null,null,null,null,"Ahmad \"Al\" Rwais","Saberlines Insurance Services","AALRWAIS@SABERLINESINS.COM","(909) 608 - 0612"]
["American Business Insurance Services",null,null,null,null,null,"Alex Watson","Hilb Group of Virginia","awatson@hilbgroup.com","(336) 506 - 6636"]
["American Business Insurance Services - B",null,null,null,null,null,"Alex Watson","Venture Specialty Insurance","awatson@hilbgroup.com","(336) 506-6636 x200"]
["American Specialty Insurance Group, Inc",null,null,null,null,null,"Alyssa Moyer","TIPS Insurance","alyssa@pictips.com"]
["Atlantis Business Insurance Solutions",null,null,null,null,null,"Anabela Fuentes","Preferred Risk Agency","AnabelaF@PRA-LLC.com","(973) 845 - 6004"]
["Clay Thomas & Associates LLC",null,null,null,null,null,"Andrew Gross","Fairmont Insurance Advantage","agross@fairmontins.com","(718) 906-0458"]
["Creative Insurance Services LLC",null,null,null,null,null,"Andrew York","American Business Insurance Services","ayork@abiweb.com","(800) 980 - 1950"]
["Distinctive Insurance",null,null,null,null,null,"Beverly Monroe","Financial Associates Inc. DBA Research Underwriters","bmonroe@researchunderwriters.com","(800) 727 - 3732"]
["Fairmont Insurance Advantage",null,null,null,null,null,"Blake Spahn","American Business Insurance Services","blake@abiweb.com","(800) 980 - 1950"]
["Financial Associates Inc. DBA Research Underwriters",null,null,null,null,null,"Brad Bartholomew","Risk Partners, Inc.","bbartholomew@riskpartnersinc.com","(609) 714 - 7760"]
["Geny Insurance Group, LLC",null,null,null,null,null,"Bryan Moore","Preferred Transportation Insurance Agency","bryanm@preferredtransportationinsurance.com","(714) 348 - 1610"]
["Hemly Insurance Group",null,null,null,null,null,"Carla Carter","Cornell Insurance Services LLC","ccarter@cornellins.com","(732) 902-2420 x103"]
["HILB Group of New Jersey",null,null,null,null,null,"Carmen Iskander","Jenkins Financial Insurance Agency","carmeninsurance@aol.com","(619) 444 - 4664"]
["Hilb Group of Virginia",null,null,null,null,null,"Charlene Brewer ","Professional Risk Solutions","Charlene@prsbrokers.com"]
["Hospitality Insurance Agency LLC",null,null,null,null,null,"Cheryl Lasher","Powers-Leavitt","cheryl-lasher@leavitt.com","(623) 298 - 3161"]
["Imobisa Insurance",null,null,null,null,null,"Chris Courtad","P.A. Post Agency LLC","ccourtad@papost.com","(216) 952 - 4002"]
["Insurance Office of America",null,null,null,null,null,"Christopher Lee","LuxQuote LLC","chris@luxquote.com","(415) 805 - 2838"]
["Jenkins Financial Insurance Agency",null,null,null,null,null,"Clarke White","Hilb Group of Virginia","cwhite@hilbgroup.com","(336) 506 - 6103"]
["JIA Insurance Agency LLC",null,null,null,null,null,"Craig Sanassarian","Insurance Office of America","Craig.sanassarian@ioausa.com","(530) 888 - 7300"]
["JRS Insurance Group",null,null,null,null,null,"Dan McCabe","Clay Thomas & Associates LLC","Dmccabe@claythomasassoc.com","(201) 252 - 8610"]
["Kettering Rose Insurance Services",null,null,null,null,null,"Dan McCabe","P.A. Post Agency LLC","Dmccabe@claythomasassoc.com","(201) 252 - 8610"]
["Kiely Hines & Assoc. Ins.",null,null,null,null,null,"Daniela Costanzo","MORENO & GRAHAM INSURANCE SERVICES, INC.","dcostanzo@mgins.net","(714) 505 - 2907"]
["Leeds & York",null,null,null,null,null,"Dave Haley","American Business Insurance Services","Dave@abiweb.com","(800) 980 - 1950"]
["LuxQuote LLC",null,null,null,null,null,"Dave Massaro","P.A. Post Agency LLC","dmassaro@papost.com"]
["Maximum Independent Brokerage, LLC",null,null,null,null,null,"David B. Staggard","Cornell Insurance Services LLC","dstaggard@cornellins.com","(732) 902-2420"]
["MORENO & GRAHAM INSURANCE SERVICES, INC.",null,null,null,null,null,"David D'Andrea","Preferred Risk Agency","david@pra-llc.com"]
["New America Insurance",null,null,null,null,null,"Debbie Burdick","American Business Insurance Services","debbie@abiweb.com","(800) 980 - 1950"]
["Northern Star Management",null,null,null,null,null,"Deborah Metzger","Advantage One Insurance","dmetzger@sccoast.net","(843) 445 - 6888"]
["Onyx Transportation Services",null,null,null,null,null,"Dee Gonzales","Stateline Insurance Solutions","dee@sis.email","(817) 459 - 2590"]
["P.A. Post Agency LLC",null,null,null,null,null,"Diana Garcia","Professional Insurance Strategies","diana@proinsgroup.com","(623) 463 - 9000"]
["Partners Specialty Group, LLC",null,null,null,null,null,"Donna Lamcaj","HILB Group of New Jersey","dlamcaj@postfinancial.com","(201) 252 - 3016"]
["Patrick Neal Insurance Services - Youtube Insurance Services",null,null,null,null,null,"Donna Lamcaj","P.A. Post Agency LLC","dlamcaj@papost.com","(201) 252-3016"]
["Powers-Leavitt",null,null,null,null,null,"Dwight Zivo","Parr Insurance Brokerage, Inc.","dwight@parrinsurancebrokerage.com","(773) 489 - 3001"]
["Preferred Risk Agency",null,null,null,null,null,"Eric Leibowitz","Professional Risk Solutions","eric@prsbrokers.com"]
["Preferred Transportation Insurance Agency",null,null,null,null,null,"Erin Reitler","Financial Associates Inc. DBA Research Underwriters","ereitler@researchunderwriters.com","(412) 351 - 5800"]
["Professional Insurance Strategies",null,null,null,null,null,"Felix German","Atlantis Business Insurance Solutions","info@bizinsuranceadvisors.com","(415) 335 - 0900"]
["Risk Partners, Inc.",null,null,null,null,null,"Francis Imobisa","Imobisa Insurance","imobisainsurance@gmail.com","(804) 270 - 6632"]
["Saberlines Insurance Services",null,null,null,null,null,"Gary Hanson","Professional Insurance Strategies","ghanson@proinsgroup.com","(623) 463 - 9000"]
["Schroeder Coverage LLC",null,null,null,null,null,"Gena Litinsky","Creative Insurance Services LLC","gena@creativeinsllc.com","(818) 591 - 8017"]
["Top Notch Insurance Solutions",null,null,null,null,null,"George Wilk","American Business Insurance Services","george@abiweb.com","(800) 980 - 1950"]
["Valley Regional Insurance Services",null,null,null,null,null,"Gretchen Bullock","Professional Insurance Strategies","gretchen@proinsgroup.com","(623) 463 - 9000"]
["TIPS Insurance",null,null,null,null,null,"Heather Bechelli","Clay Thomas & Associates LLC","hbechelli@emailcta.com","(201) 252 - 8610"]
[null,null,null,null,null,null,"Heather Dezayas","Financial Associates Inc. DBA Research Underwriters","hdezayas@researchunderwriters.com"]
[null,null,null,null,null,null,"Hugh Tamoney","American Specialty Insurance Group, Inc","Hugh@asiginsurance.com","(561) 683 - 1220"]
[null,null,null,null,null,null,"James Schroeder","Schroeder Coverage LLC","james@schroedercoverage.com","(440) 617 - 9010"]
[null,null,null,null,null,null,"Jeanette Peraza","P.A. Post Agency LLC","jperaza@papost.com"]
[null,null,null,null,null,null,"Jeff Schmidt","Financial Associates Inc. DBA Research Underwriters","jeff@researchunderwriters.com"]
[null,null,null,null,null,null,"Jeff Serber","American Business Insurance Services","jeff@abiweb.com","(800) 980-1950"]
[null,null,null,null,null,null,"Jennifer","Hilb Group of Virginia","jhauser@hilbgroup.com"]
[null,null,null,null,null,null,"Jennifer Holmes","Preferred Risk Agency","Jennifer@pra-llc.com","(973) 845 - 6004"]
[null,null,null,null,null,null,"Jeremy Williams","Hospitality Insurance Agency LLC","jeremy@hospitality-ins.com","(843) 407 - 5082"]
[null,null,null,null,null,null,"Jessica Hewitt","American Business Insurance Services","jessica@abiweb.com","(800) 980 - 1950"]
[null,null,null,null,null,null,"Jessica Melito","Links Insurance Services LLC"," JMelito@linksins.onmicrosoft.com"]
[null,null,null,null,null,null,"Jessica Poston","Hospitality Insurance Agency LLC","csry@hospitality-ins.com"]
[null,null,null,null,null,null,"Jesslyn Stayner","Valley Regional Insurance Services","Jesslyn@valleyregional.com","(559) 446 - 1398"]
[null,null,null,null,null,null,"Jim Bohn","Kiely Hines & Assoc. Ins.","jbohn@kielyhines.com","(502) 569 - 2716"]
[null,null,null,null,null,null,"Joel Batmale","Insurance Office of America","joel.batmale@ioausa.com","(530) 888 - 7300"]
[null,null,null,null,null,null,"John Lais","L3 Insurance Advisors, LLC ","jlais@l3insuranceadvisors.com"]
[null,null,null,null,null,null,"John Motley","Northern Star Management","jmotley@northernstarins.com","(908) 253 - 9484"]
[null,null,null,null,null,null,"Joseph N. De Francesco","Partners Specialty Group, LLC","jdefrancesco@psgins.com","(484) 322-0420"]
[null,null,null,null,null,null,"Katherine Haley","American Business Insurance Services","khaley@abiweb.com","(800) 980 - 1950"]
[null,null,null,null,null,null,"Katy Batista","P.A. Post Agency LLC","kbatista@papost.com"]
[null,null,null,null,null,null,"Keith Adams","P.A. Post Agency LLC","kadams@papost.com"]
[null,null,null,null,null,null,"Ken Welch","Hemly Insurance Group","kwelch@hemly.us","(864) 567 - 3482"]
[null,null,null,null,null,null,"Kevin Clausen","Northern Star Management","kclausen@northernstarins.com","(908) 253 - 9484"]
[null,null,null,null,null,null,"Kristen Ilsemann","Partners Specialty Group, LLC","kilsemann@psgins.com","(484) 322 - 0467"]
[null,null,null,null,null,null,"Kristin Bennett","Hilb Group of Virginia","kbennett@hilbgroup.com","(804) 205-1207"]
[null,null,null,null,null,null,"Krystle Morgan","Insurance Office of America","Krystle.Morgan@ioausa.com"]
[null,null,null,null,null,null,"Latonya Foster","Imobisa Insurance","lfoster@imobisainsurance.com","(804) 270 - 6632"]
[null,null,null,null,null,null,"Laura Loftus","American Business Insurance Services","laura@abiweb.com","(800) 980 - 1950"]
[null,null,null,null,null,null,"Lisa M. Massaro ","P.A. Post Agency LLC","lmassaro@papost.com","(201) 252-3064"]
[null,null,null,null,null,null,"Lou Sukalski","New America Insurance","newamlou@msn.com","(440) 934-7766"]
[null,null,null,null,null,null,"Louis Campisano","Preferred Risk Agency","Louisjr@pra-llc.com","(973) 845 - 6004"]
[null,null,null,null,null,null,"Lynnsey Moyer","TIPS Insurance","lmoyer@pictips.com","(610) 622-1954"]
[null,null,null,null,null,null,"Manny Holden","P.A. Post Agency LLC","mholden@papost.com","(201) 252-3018"]
[null,null,null,null,null,null,"Maranda Mull","Financial Associates Inc. DBA Research Underwriters","mmull@researchunderwriters.com"]
[null,null,null,null,null,null,"Maria Jarvis","JIA Insurance Agency LLC","mjarvis@jarvisins.com","(951) 395 - 2229"]
[null,null,null,null,null,null,"Marie Gabriel","Advantage One Insurance","mgabriel@sccoast.net","(843) 445 - 6888"]
[null,null,null,null,null,null,"Marlene Flores","Professional Insurance Strategies","marlene@proinsgroup.com","(623) 463 - 9000"]
[null,null,null,null,null,null,"Matt Gumm","Hilb Group of Virginia","mgumm@hilbgroup.com","(866) 976 - 8294"]
[null,null,null,null,null,null,"Maya Vaysman","Fairmont Insurance Advantage","mvaysman@FairmontIns.com"]
[null,null,null,null,null,null,"Michael Stewart","Distinctive Insurance","mstewart@distinctive.net","(702) 874 - 3099"]
[null,null,null,null,null,null,"Michelle Duran","Preferred Transportation Insurance Agency","michelle@preferredtransportationinsurance.com","(714) 666-6691"]
[null,null,null,null,null,null,"Michelle York","American Business Insurance Services","MYork@abiweb.com","(800) 980 - 1950"]
[null,null,null,null,null,null,"Miguel Leon","Preferred Risk Agency","miguel@pra-llc.com","(973) 845 - 6004"]
[null,null,null,null,null,null,"Mike Guilbault","Kettering Rose Insurance Services","Mikeg@kr-ins.com","(619) 291 - 7777"]
[null,null,null,null,null,null,"Moshe Deutsch","Fairmont Insurance Advantage","Mdeutsch@fairmontins.com"]
[null,null,null,null,null,null,"Nathan Spears","Geny Insurance Group, LLC","nathan@genyinsurance.com","(615) 515 - 8600"]
[null,null,null,null,null,null,"Nichole Haley","American Business Insurance Services","Nhaley@abiweb.com","(800) 980 - 1950"]
[null,null,null,null,null,null,"Patricia Mesa","HILB Group of New Jersey","pmesa@claythomasassoc.com","(201) 252 - 8610"]
[null,null,null,null,null,null,"Patricia Mesa","HILB Group of New Jersey","pmesa@claythomasassoc.com","(201) 252 - 8610"]
[null,null,null,null,null,null,"Patrick Grubb","American Specialty Insurance Group, Inc","patrick@asiginsurance.com","(561) 683 - 1220"]
[null,null,null,null,null,null,"Patrick Neal","Patrick Neal Insurance Services - Youtube Insurance Services","patrick@youtubeinsurance.com","(925) 963 - 8089"]
[null,null,null,null,null,null,"Patti Diskin","Financial Associates Inc. DBA Research Underwriters","pdiskin@researchunderwriters.com","(412) 351 - 5800"]
[null,null,null,null,null,null,"Peter Zaki","Cornell Insurance Services LLC","Pzaki@cornellins.com","(732) 860 - 7014"]
[null,null,null,null,null,null,"Philip Palmer","Kiely Hines & Assoc. Ins.","ppalmer@kielyhines.com","(502) 893-2020"]
[null,null,null,null,null,null,"Philo Bashay","LuxQuote LLC","philo@luxquote.com","(203) 973 - 7589"]
[null,null,null,null,null,null,"Philo Bishay","LuxQuote LLC","philo@luxquote.com"]
[null,null,null,null,null,null,"Rafeeq Salaam","JRS Insurance Group","jrafeeq@gmail.com","(804) 433 - 3634"]
[null,null,null,null,null,null,"Rebecca Novotchin","Preferred Transportation Insurance Agency","rebeccan@preferredtransportationinsurance.com","(714) 666 - 6691"]
[null,null,null,null,null,null,"Reid Wood","Top Notch Insurance Solutions","reid@topnotchinsurance.com"]
[null,null,null,null,null,null,"Renee Filippelli","Clay Thomas & Associates LLC","rfilippelli@claythomasassoc.com","(201) 252 - 8610"]
[null,null,null,null,null,null,"Renee Filippelli ","P.A. Post Agency LLC","rfilippelli@papost.com","(201) 252-8610 x7014"]
[null,null,null,null,null,null,"Rich Burnstein","Solomon & Solomon","rich@solomonins.com","(949) 521-6506"]
[null,null,null,null,null,null,"Rick Grimes  ","Professional Risk Solutions","Rick@prsbrokers.com"]
[null,null,null,null,null,null,"Robert Rashidi","Top Notch Insurance Solutions","robert@topnotchinsurance.com","(206) 264 - 6267"]
[null,null,null,null,null,null,"Rodrigo Carrera","Links Insurance Services LLC","Rcarrera@linksins.com"]
[null,null,null,null,null,null,"Roxann Robinson","Leeds & York","rromero@leedsandyork.com","(775) 823 - 9777"]
[null,null,null,null,null,null,"Roxanne Browning ","Assured Neace Lukens Insurance ","Roxanne.Browning@assuredptrnl.com"]
[null,null,null,null,null,null,"Rus Rakoszynski","Fairmont Insurance Advantage","rusr@fairmontins.com","(718) 906 - 0462"]
[null,null,null,null,null,null,"Sandra Downs","Kiely Hines & Assoc. Ins.","sdowns@kielyhines.com","(502) 893-2020"]
[null,null,null,null,null,null,"Sara Scott","Northern Star Management","sscott@northernstarins.com","(937) 432 - 3526"]
[null,null,null,null,null,null,"Scott Rovner","TIPS Insurance","scottr@pictips.com","(610) 622 - 1954"]
[null,null,null,null,null,null,"Shelagh Wahl-Grubb","American Specialty Insurance Group, Inc","SHELAGH@ASIGINSURANCE.COM","(561) 683 - 1220"]
[null,null,null,null,null,null,"Staci Jimenez","Preferred Transportation Insurance Agency","stacij@preferredtransportationinsurance.com","(714) 666 - 6691"]
[null,null,null,null,null,null,"Stephen Vaughan","Links Insurance Services LLC","svaughan@linksins.com"]
[null,null,null,null,null,null,"Stewart Felvey","Hilb Group of Virginia","sfelvey@hilbgroup.com","(866) 976 - 8294"]
[null,null,null,null,null,null,"Sue Chaffo","Financial Associates Inc. DBA Research Underwriters","schaffo@researchunderwriters.com","(412) 351 - 5800"]
[null,null,null,null,null,null,"Susan Malka","Fairmont Insurance Advantage","smalka@fairmontins.com","(718) 906-0420"]
[null,null,null,null,null,null,"Susan Snelling","Kiely Hines & Assoc. Ins.","ssnelling@kielyhines.com"]
[null,null,null,null,null,null,"Tammy Poston","Hospitality Insurance Agency LLC","tammy@hospitality-ins.com","(843) 407 - 5082"]
[null,null,null,null,null,null,"Taylor Naud","American Business Insurance Services","taylor@abiweb.com","(800) 980 - 1950"]
[null,null,null,null,null,null,"Teresa DelRial ","L3 Insurance Advisors, LLC ","teresa@l3insuranceadvisors.com","(702) 222-0400"]
[null,null,null,null,null,null,"Thomas Clancy","American Specialty Insurance Group, Inc","Tclancy@asiginsurance.com","(561) 683 - 1220"]
[null,null,null,null,null,null,"Thomas Rosario","American Business Insurance Services","thomas@abiweb.com","(800) 980 - 1950"]
[null,null,null,null,null,null,"Tiffany Pastorius","Insurance Office of America","tiffany.pastorius@ioausa.com","(925) 660 - 3523"]
[null,null,null,null,null,null,"Tim Riley","Maximum Independent Brokerage, LLC","TIMR@MAXIB.COM","(610) 228 - 0460"]
[null,null,null,null,null,null,"Tom Griffin","Insurance Office of America","Tom.Griffin@ioausa.com","(866) 664 - 8294"]
[null,null,null,null,null,null,"Tom McCuckser","TIPS Insurance","tom@pictips.com","(610) 622 - 1954"]
[null,null,null,null,null,null,"Tracey Becerra ","Insurance Office of America","Tracey.Becerra@ioausa.com"]
[null,null,null,null,null,null,"Valerie Barkman","P.A. Post Agency LLC","vbarkman@papost.com","(201) 252-3024"]
[null,null,null,null,null,null,"Valerie Fiorello","Clay Thomas & Associates LLC","vfiorello@claythomasassoc.com","(201) 252 - 8610"]
[null,null,null,null,null,null,"Valerie Fiorello","HILB Group of New Jersey","vfiorello@claythomasassoc.com","(201) 252 - 8610"]
[null,null,null,null,null,null,"Valerie Fiorello ","P.A. Post Agency LLC","vfiorello@papost.com","(201) 252-8610 x7101"]
[null,null,null,null,null,null,"Veronica Barkman","P.A. Post Agency LLC","vbarkman@papost.com","(201) 252 - 3024"]
[null,null,null,null,null,null,"Veronica Barkman ","P.A. Post Agency LLC","vbarkman@papost.com"]
[null,null,null,null,null,null,"Anthony Searcy ","MAXIMUM","ANTHONYS@MAXIB.COM "]
[null,null,null,null,null,null,"Mayra Jimenez","Vaught Insurance Services, Inc.","mayra@vaughtinsurance.com"]
[null,null,null,null,null,null,"Maria Belmarez","Vaught Insurance Services, Inc.","Maria@vaughtinsurance.com"]
[null,null,null,null,null,null,"Mary Vaught","Vaught Insurance Services, Inc.","Mary@vaughtinsurance.com"]
[null,null,null,null,null,null,"Michele Stafford","Vaught Insurance Services, Inc.","michele@vaughtinsurance.com"]
[null,null,null,null,null,null,"Dana Moore","Specialty Unlimited Agency LLC","dana@unlimitedinsurance.org"]
[null,null,null,null,null,null,"Michelle Diamondson","Specialty Unlimited Agency LLC","michelle@unlimitedinsurance.org"]
[null,null,null,null,null,null,"Wael Mohammad","Casurance Agency Insurance Services, LLC","wael@casurance.com"]
[null,null,null,null,null,null,"Donna Lamcaj","P.A. Post Agency LLC","dlamcaj@papost.com"]
[null,null,null,null,null,null,"Gayle Williams","Propel Insurance","Gayle.Williams@propelinsurance.com"]
[null,null,null,null,null,null,"Trisha Baldovinos ","Propel Insurance","Trisha.Baldovinos@propelinsurance.com"]
[null,null,null,null,null,null,"Cleonie Nathanielsz","Propel Insurance","Cleonie.Nathanielsz@propelinsurance.com"]
[null,null,null,null,null,null,"Dan DeGrange","Propel Insurance","Dan.DeGrange@propelinsurance.com"]
[null,null,null,null,null,null,"Andrew Arceri","Crossland Insurance Agency","andrew@crosslandins.com"]
[null,null,null,null,null,null,"Kristen Vice","Crossland Insurance Agency","kristen@crosslandins.com"]
[null,null,null,null,null,null,"Lori Norris","Risk Partners, Inc.","LNorris@riskpartners.com"]
[null,null,null,null,null,null,"David Holcomb","Reisen Agency Inc","david@reisenagency.com"]
[null,null,null,null,null,null,"Michael Cluett","Cluett Commercial Insurance","Mcluett@cluettinsurance.com"]
[null,null,null,null,null,null,"Bruce Cluett","Cluett Commercial Insurance","Bcluett@cluettinsurance.com"]
[null,null,null,null,null,null,"Jenny Boulos","Pauma/Valley Insurance Agency Inc","jenny@pvins.com"]
[null,null,null,null,null,null,"Deanna DeLoen ","Vaught Insurance Services, Inc.","deanna@vaughtinsurance.com"]
[null,null,null,null,null,null,"Maha Alhalabi","Casurance Agency Insurance Services, LLC","maha@casurance.com"]
[null,null,null,null,null,null,"Michael Pegram","Hospitality Insurance Agency LLC","mike@hospitality-ins.com"]

{"sheet":"Sheet1","index":5,"n_rows":0,"n_cols":0,"rows_kept":0,"cut":false,"hidden":false,"merged":[]}